{"text_format":"1","workbook":"xlsx","n_sheets":22,"sheets":["Cover Page","Facility Info","Operational Data","Operational Summary","Perf. Form 1","Energy Form 1","Permit Compliance","Improvements","Public Liasion","CO2 N2O","Residues","Water","Air (periodic)","Air (CEMS)","HCl","SO2","NOx","TOC","Particulates","CO 95% 10 min","NH3","Template changes log"],"not_rendered":{"charts":7,"images":5,"macros":1,"external_links":0,"defined_names":22,"comments":0,"pivot_tables":0},"unopened":[],"bounds":{"document_bytes":16777216,"sheet_cells":100000,"rows_first":2000,"rows_last":500,"rows_between":2000,"halvings":0,"cell_chars":16384,"cell_head_chars":4096},"cells_cut":0,"cells_raw":0,"read":"whole","date_system":"1900"}

{"sheet":"Cover Page","index":0,"n_rows":55,"n_cols":18,"rows_kept":55,"cut":false,"hidden":false,"merged":[[48,2,48,3],[48,6,48,8],[52,2,52,3],[36,1,36,8],[40,2,40,8],[42,2,42,4],[44,2,44,4],[46,2,46,3],[46,6,46,8],[13,10,18,12],[34,1,34,8],[0,3,5,6],[7,1,23,8],[28,1,28,8],[30,1,30,8],[32,1,32,8]]}
[null,null,null,"Add company logo"]
[null,null,null,null,null,null,null,null,null,null,"Template version 25.1a (for incinerators) - 27/11/25"]
[]
[null,null,null,null,null,null,null,null,null,null,"Note that there is another version of this template available for co-incinerators"]
[]
[]
[]
[null,"Add photo"]
[]
[]
[]
[]
[null,null,null,null,null,null,null,null,null,null,"Notes:"]
[null,null,null,null,null,null,null,null,null,null,"This template may require adjustments by individual operators to meet specific reporting requirements as defined in the site Permit(s)"]
[]
[]
[]
[]
[]
[]
[]
[]
[]
[]
[]
[]
[]
[]
[null,"Annual Performance Report 2025"]
[]
[null,"Permit EPR/NP3638ZS"]
[]
[null,"Peterborough Energy Recovery Facility"]
[]
[]
[]
[null,"Viridor Peterborough Ltd"]
[]
[null,"Year:",2025]
[]
[null,"Address:","Fourth Drove,Peterborough, PE1 5UR"]
[]
[null,"Tel: ","01733 465284"]
[]
[null,"Email: ","Ellen.Raymond@viridor.com"]
[]
[null,"Prepared by:","E Raymond",null,null,"Position:","Technical Compliance Lead"]
[]
[null,"Approved by:","C Knowles",null,null,"Position:","Plant Manager"]
[]
[null,"Version:",1]
[]
[null,"Issue Date:","2025-10-17"]
[]
[null,null,null,null,null,null,null,null,null,null,null,null,null,null,null,null,null," "]

{"sheet":"Facility Info","index":1,"n_rows":22,"n_cols":11,"rows_kept":22,"cut":false,"hidden":false,"merged":[[4,0,17,8],[21,0,53,8],[4,10,13,13],[21,10,30,13]]}
[{"$f":"+'Cover Page'!$B$29","v":"Annual Performance Report 2025"},null,null,null,{"$f":"+'Cover Page'!$B$33","v":"Peterborough Energy Recovery Facility"}]
[]
["Plant Description and Design",null,null,null,null,null,null,null,null,null,"Notes:"]
[]
["Peterborough Energy from Waste (EfW) facility is located on the eastern side of Peterborough and occupies an area of 4.5 hectares within the Fengate Industrial Estate, approximately 2.5km south-east of the city centre. The ERF enables the city of Peterborough and area to divert about 110,000 (Variation to increased from 85,000) tonnes of residual waste from landfill each year.\n\nThe facility is a single line plant which has a capacity for 110,000 tonnes per year and generates electricity (on average 8.5-8.8MWh) to be used internally and exported to the National Grid. The facility design and layout of the steam turbine allows for potential heat export to local users, a small district heating scheme was commissioned in March 2017 serving Dodson House (next door building owned by Peterborough City Council) although this is currently dormant.\n\nViridor Energy Ltd are contracted by Viridor Peterborough Ltd to operate and maintain the plant on their behalf and that of Peterborough City Council.",null,null,null,null,null,null,null,null,null,"Include summary of plant design, design capacity, no. of combustion lines, electrical and heat capacity and any other general information that describes the facility, its location and purpose "]
[]
[]
[]
[]
[]
[]
[]
[]
[]
[]
[]
[]
[]
[]
["Summary of Operational Processes and Procedures"]
[]
["Incoming refuse collection vehicles and bulk transport vehicles enter the site and proceed to the incoming weighbridge. After weighing in, the vehicles continue to the enclosed reception hall where they will discharge their load into the waste storage bunker.\n\nVehicle loads are inspected randomly in the Tipping Hall to confirm the nature of incoming waste. Once vehicles have deposited their waste they leave the site via a second weighbridge. Potential emissions of odour and dust from the tipping hall and refuse bunkers are controlled by forced draught fans located above the refuse bunkers. These draw air from the bunker hall and reception area into the furnace to feed the combustion process, creating a slight negative pressure. An mist odour supression system complements this.\n\nThe waste combustion takes place on a Volund Dynagrate the heat generated being used to create superheated steam which is used to drive the steam turbine and generate electricity. Heat from turbine bleeds can be used for combined heat and power systems and is also used for pre-heating of combustion air and operation of the deaerator to maximise efficiency.\n\nCondensing of the steam takes place via air cooled condensing system and the condensate cycles back around in a closed system (other than necessary top up).\n\nEmission control is via injection of ammonia into the furnace for NOx control via SNCR technology. At the end of the boiler and gas path lime and activated carbon are added to remove acidic gases, dioxins, furans and heavy metals before this is all filtered by a bag filter system which removes the lime and carbon added and particulates from the combustion process producing APCr. Emissions are measured continuously in stack and by extractive stack measurements as required by the environmental permit.\n\nResidues from the process, IBA and APCr are both sent to specialist reprocessing sites. IBA has metals removed for recyling and is reprocessed into IBAA (Incinerator Bottom Ash Aggregate). The APCr is sent to OCO Technology (formally Carbon8) who use accelerated cabonation technology to produce a carbon negative aggregate material which encapsulates the absorbed substances from the APCr.\n\nMaintenance is controlled by a CMMS system and consists of planned preventative maintenance (ppm), derived from both experience of the plant and OEM requirements, and reactive maintenance. An annual shutdown period happens each summer during which maintenance and statutory inspections are carried out.\n\nThe plant operates a document control system meeting the requirements of the Viridor document management system and ISO 9001, 14001, 45001 and 50001",null,null,null,null,null,null,null,null,null,"Include summary of key processes and procedures such as (but not limited to); waste reception, control rooms, grate, bed and boiler, energy & heat  generation, cooling systems, residue management, emission controls, health and safety systems, maintenance"]

{"sheet":"Operational Data","index":2,"n_rows":68,"n_cols":10,"rows_kept":68,"cut":false,"hidden":false,"merged":[[4,9,23,9],[25,9,29,9],[56,0,60,0],[34,1,42,1],[3,1,3,2],[10,1,22,1],[26,1,28,1],[7,2,7,3]]}
[{"$f":"+'Cover Page'!$B$29","v":"Annual Performance Report 2025"},null,null,null,{"$f":"+'Cover Page'!$B$33","v":"Peterborough Energy Recovery Facility"}]
[]
["Operational Data"]
["Plant Size:",110000,null,"tonnes pa",null,null,null,null,null,"Notes:"]
["Nominal net thermal input:",null,"MWth",null,null,null,null,null,null,"* Export capacity = nominal generation capacity at the generator terminals minus nominal parasitic load.\n\n** CHP and district heating plants only - put N/A if no heat export.\n\n***  Combusted tonnage = tonnes delivered in period + (tonnes in bunker at start of period – tonnes in bunker at end of period), or equivalent calculation depending on plant type\n\n**** Availability Definition: The availability of a line is to be calculated by the number of hours the line reported Continuously Monitored emission levels to the Regulator through the calendar year divided by the total number of hours in that year. \n\nThe overall plant availability is calculated as the mean of all lines in the plant. For clarity this includes periods of abnormal operation.  \n\nRationale: The primary function of an Energy from Waste facility is the disposal of waste. It follows therefore that the availability of a plant is determined by the period of time a facility spends undertaking this activity.\n\n*****NCV of waste: This should be completed for all plants which have a boiler. Calculate using total thermal power produced by boiler/boiler efficiency, or other suitable calculation. \n"]
["Nominal electrical export capacity*:",8,"MWe"]
["Nominal heat export capacity**:",0,"MWth"]
["No. of combustion lines:",1,"No. of steam turbines:",null,1]
[]
["Waste types received","Unit","Q1","Q2","Q3","Q4","Year Total","%"]
["Household / Local Authority","tonnes",11379.630000000001,12889.035000000002,12547.989999999998,11605.278000000017,{"$f":"SUM(C11:F11)","v":48421.933000000019},{"$f":"IF(G11>0,G11/$G$21,\"-\")","v":0.52009338940516814}]
["Commercial & Industrial ",null,5472.5,5028.5200000000004,7702.2369999999992,12607.076000000005,{"$f":"SUM(C12:F12)","v":30810.333000000002},0.33092959173422298]
["Hazardous ",null,null,null,null,null,0,"-"]
["Clinical",null,1557.76,1713.2400000000009,2090.94,2354.9211999999993,7716.8611999999994,8.2885755450473886E-2]
["Waste wood (biomass) ",null,null,null,null,null,0,"-"]
["Refuse Derived Fuel (incl. SRF) - H'hold/LA",null,1524.72,396.98,494.48,422.91999999999996,{"$f":"SUM(C16:F16)","v":2839.1000000000004},3.0494386538848266E-2]
["Refuse Derived Fuel (incl. SRF) - C&I",null,518.46,407.02000000000027,585.44000000000005,522.29999999999995,2033.2200000000003,2.1838539184430655E-2]
["Plastic (20 01 39)",null,383.65999999999997,280.03999999999996,271.48,277.58000000000004,1212.76,1.302609003517087E-2]
["Street Cleaning Residue (20 03 03)",null,17.740000000000002,13.080000000000004,11.479999999999999,25.874000000000006,68.174000000000007,7.3224765168519658E-4]
[null,null,null,null,null,null,0,"-"]
["Total waste received",null,{"$f":"SUM(C11:C20)","v":20854.47},{"$f":"SUM(D11:D20)","v":20727.915000000005},{"$f":"SUM(E11:E20)","v":23704.046999999995},{"$f":"SUM(F11:F20)","v":27815.949200000021},93102.381200000018]
["Rejected Waste ",null,2.1,null,0,null,{"$f":"SUM(C22:F22)","v":2.1},{"$f":"IF(G22>0,G22/$G$21,\"-\")","v":2.2555814071917634E-5}]
["Unprocessed waste transferred out",null,125,2283.6999999999994,0,null,{"$f":"SUM(C23:F23)","v":2408.6999999999994},{"$f":"IF(G23>0,G23/$G$21,\"-\")","v":2.5871518740489517E-2}]
["Total waste combusted ***",null,21033.83,18118,23507,27366,{"$f":"SUM(C24:F24)","v":90024.83}]
[]
["Energy Usage / Export","Unit","Q1","Q2","Q3","Q4","Year Total","KWh/te",null,"Password for protected cells\nA password has been set to prevent accidental  editing of cells with formulae. \nIf you still need to make an edit for some reason then the password = 1234"]
["Power generated at generator terminals","MWh",15358,12471,17064,18515,{"$f":"SUM(C27:F27)","v":63408},{"$f":"IF(G27>0,G27*1000/$G$24,\"-\")","v":704.33901402535275}]
["Power exported to grid and other external user(s)",null,13578,10901,14870,16395,{"$f":"SUM(C28:F28)","v":55744},{"$f":"IF(G28>0,G28*1000/$G$24,\"-\")","v":619.20694546160212}]
["Power imported",null,138,220,56,0,414,{"$f":"IF(G29>0,G29*1000/$G$24,\"-\")","v":4.5987312611420652}]
["Indicative parasitic load","%",{"$f":"IF(C27>0,(C27-C28)/C27,\"-\")","v":0.11590050787863003},0.12589206960147542,0.12857477730895453,0.11450175533351337,{"$f":"IF(G27>0,1-G28/(G27+G29),\"-\")","v":0.12657077496787938}]
["Thermal Energy Exported **",null,null,null,null,null,{"$f":"SUM(C31:F31)","v":0},{"$f":"IF(G31>0,G31*1000/$G$24,\"-\")","v":"-"}]
["R1 value (if applicable)","R1","-","-","-","-",0.79]
[]
["Waste Disposal & Recovery","Unit","Q1","Q2","Q3","Q4","Year Total","% inputs"," "]
["APC Residues - produced","tonnes",552.04999999999995,409.39,407.56,508.84,{"$f":"SUM(C35:F35)","v":1877.84},{"$f":"IF(G35>0,G35/$G$24,\"-\")","v":2.0859134085562836E-2}]
["IBA - produced",null,4297,3628.52,4839.04,4747.82,17512.38,{"$f":"IF(G36>0,G36/$G$24,\"-\")","v":0.19452833179468376}]
["Metals recycling",null,6.5,22.7,2.2200000000000002,2,{"$f":"SUM(C37:F37)","v":33.42},3.7123091484871453E-4]
["Non-chlorinated engine, gear & lubricating oils (130205*)",null,1.4,1.4,1.4,null,4.1999999999999993,4.6653795402890507E-5]
["Interceptor sludge (130503*)",null,null,null,null,128.80000000000001,128.80000000000001,1.4307163923553091E-3]
["Bag Filters (150202*)",null,null,4.2,null,null,4.2,4.6653795402890513E-5]
["Mixed construction/demolition (170904)",null,2.1800000000000002,30.46,0.66,2,35.299999999999997,3.9211404231477022E-4]
["WEEE (200135, 200133, 200121)",null,null,0.20849999999999999,0.4,0,0.60850000000000004,6.7592463101568757E-6]
["Other",null,0,0,0,0,0,"-"]
[]
["Raw Material Usage","Unit","Q1","Q2","Q3","Q4","Year Total","Qty./te"]
["Mains Water","ltrs",13303000,14504000,11919000,10362000,{"$f":"SUM(C46:F46)","v":50088000},{"$f":"IF(G46>0,G46/$G$24,\"-\")","v":556.37983431904286}]
["Domestic Water","ltrs",131000,112000,47000,45000,335000,{"$f":"IF(G47>0,G47/$G$24,\"-\")","v":3.7211955857067434}]
["Ammonia","kgs",81330,30790,38880,42230,193230,2.1464078299286986]
["Urea","kgs",null,null,null,null,{"$f":"SUM(C49:F49)","v":0},"-"]
["Activated Carbon","kgs",13250,7282,6998,8890,36420,0.40455505442220774]
["Lime / hydrated lime","kgs",362210,231523,304557,246820,1145110,12.719935155667608]
["Fuel oil - (Burners oil)","ltrs",83153,128501,72515,21656,305825,3.3971183283545217]
["Fuel oil - (White Diesel)","ltrs",34527,14690,3900,5557,58674,0.65175352177838042]
["Other",null,null,null,null,null,0,"-"]
[]
["Summary ","Line/Unit","Q1","Q2","Q3","Q4","Year Total",null,"Hrs in year "]
["Availability of waste combustion by line, hrs ****",1,1850.2,1559.6,2029.6,2208,{"$f":"SUM(C57:F57)","v":7647.4},{"$f":"+G57/$I$57","v":0.87299086757990862},8760]
[null,2,null,null,null,null,0,{"$f":"+G58/$I$57","v":0}]
[null,3,null,null,null,null,0,0]
[null,4,null,null,null,null,0,0]
[null,5,null,null,null,null,{"$f":"SUM(C61:F61)","v":0},0]
["Hours of turbine operations, hrs",1,1865.8000000000002,1500.4,2037.8,2207.6999999999998,7611.7,0.86891552511415526]
["Hours of turbine operations, hrs",2,null,null,null,null,0,0]
["Hours of heat / steam export**","hours",null,null,null,null,0,{"$f":"IF(B64>0,G63/I57,\"n/a\")","v":0}]
["Net calorific value of waste*****","MJ/kg",8.7666666666666675,9.1666666666666661,9.5666666666666664,9.2666666666666657,{"$f":"AVERAGE(C65:F65)","v":9.1916666666666664}]
["Abnormal operation events","qty.",0,0,0,0,0,{"$f":"IF(G66>0,\"yes\",\"no\")","v":"no"}]
["Abnormal operation duration","hours",0,0,0,0,0,{"$f":"+(G67)/I57","v":0}]
["Permit Breaches","qty.",1,4,1,0,6,{"$f":"IF(G68>0,\"yes\",\"no\")","v":"yes"}]

{"sheet":"Operational Summary","index":3,"n_rows":38,"n_cols":11,"rows_kept":38,"cut":false,"hidden":false,"merged":[[27,10,40,13],[4,0,24,8],[4,10,13,13],[26,1,26,8],[27,2,27,8],[28,2,28,8],[29,2,29,8],[30,2,30,8],[31,2,31,8],[32,2,32,8],[33,2,33,8],[34,2,34,8],[35,2,35,8],[36,2,36,8],[1048573,2,1048573,8],[39,2,39,8],[37,2,37,8],[38,2,38,8],[42,2,42,8],[40,2,40,8],[41,2,41,8]]}
[{"$f":"+'Cover Page'!$B$29","v":"Annual Performance Report 2025"},null,null,null,{"$f":"+'Cover Page'!$B$33","v":"Peterborough Energy Recovery Facility"}]
[]
["Summary of Plant Operations and Maintenance during the reporting year",null,null,null,null,null,null,null,null,null,"Notes:"]
[]
["In 2025 the overall boiler availability was 87.3% and tubrine availability was 86.9%. This was lower than availability in 2024 which is due to the major maintenance outage from 1st to 27th April, and six tube leaks in the boiler throughout the year. \n\nQ1 2025:\nThere was a total boiler availability of 85.7% in Q1. There were three tube leaks, occuring on 1st February, 5th March, and 10th March. The tube leaks accounted for 269 downtime hours in the quarter. Minor shutdowns included waste crane failures and an ash discharger blockage. There were no incidents of abnormal operation, however, there was a single emissions exceedance on 17th January. See the 'Permit Compliance' tab for further details.\n\nQ2 2025:\nTotal boiler availability in Q2 was 71.41%. This is due to 622.5 hours of downtime during the planned maintenance outage from 1st April to 27th April. There was also 1.9 hours of downtime due to unavailability of refuse cranes on 21st May. There were four TOC exceedances in Q2, all following large grate explosions. See the 'Permit Compliance' tab for further details.\n\nQ3 2025:\nTotal boiler availability in Q3 was 91.8%. Downtime was due to three tube leaks with a total downtime of 172.9 hours. Minor shutdowns included 5.5 hours for a lime dosing defect and 1.7 hours for a feed chute electrical issue. There was one TOC half-hour excedance on 8/7/2025. See the 'Permit Compliance' tab for futher details. \n\nQ4 2025:\nTotal boiler availability in Q4 was 100%. The turbine availability was 99.99% due to a very minor turbine trip. There were no exceedances of periods of abnormal operation. ",null,null,null,null,null,null,null,null,null,"Include summary of key operational and/or maintenance activity undertaken in the year, such as any major component upgrades and/or replacements "]
[]
[]
[]
[]
[]
[]
[]
[]
[]
[]
[]
[]
[]
[]
[]
[]
[]
[]
[]
[]
[]
[{"$f":"+'Cover Page'!C39","v":2025},"Plant shut-downs"]
["Start date","End date","Reason for shut-down",null,null,null,null,null,null,null,"Provide a very brief reason for plant shut-down e.g. \"Shut-down prior to major outage\"; \"Emergency shut-down due to boiler tube leak\". All emergency shut-downs must be listed (irrespective of whether or not they were required to be reported to the EA). \n\nThere is no need to include periods of hot-standby here (e.g. to clear feed chute hopper blockages).\n\nFor clinical waste incinerators which require regular shut-downs for boiler cleaning, there is no need to record these here (only those prior to major outages, and emergency shut-downs). "]
["2025-01-03","2025-01-03","Shutdown due to waste crane issue"]
["2025-01-07","2025-01-07","Shutdown due to waste crane issue"]
["2025-02-01","2025-02-06","Shutdown for tube leak in 1st pass"]
["2025-03-05","2025-03-08","Shutdown for tube leak in superheater section"]
["2025-03-10","2025-03-14","Shutdown for tube leak in superheater section"]
["2025-03-15","2025-03-16","Shutdown following ash discharger blockage"]
["2025-04-01","2025-04-27","Planned major outage"]
["2025-07-01","2025-07-03","Shutdown for tube leak"]
["2025-08-20","2025-08-22","Shutdown for tube leak"]
["2025-09-01","2025-09-04","Shutdown for tube leak"]

{"sheet":"Perf. Form 1","index":4,"n_rows":58,"n_cols":10,"rows_kept":58,"cut":false,"hidden":false,"merged":[[13,0,13,1],[13,2,13,3],[13,4,13,5],[13,6,13,7],[13,8,13,9],[14,0,14,1],[14,2,14,3],[14,4,14,5],[14,6,14,7],[14,8,14,9],[51,0,51,1],[53,0,53,9],[54,0,55,9],[42,0,42,9],[43,0,44,9],[47,0,47,1],[47,2,47,9],[49,0,49,1],[50,0,50,1],[40,0,40,3],[40,4,40,5],[40,7,40,8],[41,0,41,3],[41,4,41,5],[41,7,41,8],[38,0,38,3],[38,4,38,5],[38,7,38,8],[39,0,39,3],[39,4,39,5],[39,7,39,8],[35,0,35,3],[35,7,35,8],[36,0,36,3],[36,4,36,5],[36,7,36,8],[37,0,37,3],[37,4,37,5],[37,7,37,8],[27,0,27,3],[27,4,27,5],[27,6,27,7],[27,8,27,9],[29,0,29,9],[30,0,32,9],[25,0,25,1],[25,2,25,3],[25,4,25,5],[25,6,25,7],[25,8,25,9],[26,0,26,3],[26,4,26,5],[26,6,26,7],[26,8,26,9],[21,0,21,1],[21,2,21,3],[21,4,21,5],[21,6,21,7],[21,8,21,9],[24,0,24,1],[24,2,24,3],[24,4,24,5],[24,6,24,7],[24,8,24,9],[22,0,22,1],[22,2,22,3],[22,4,22,5],[22,6,22,7],[22,8,22,9],[23,0,23,1],[23,2,23,3],[23,4,23,5],[23,6,23,7],[23,8,23,9],[19,0,19,1],[19,2,19,3],[19,4,19,5],[19,6,19,7],[19,8,19,9],[20,0,20,1],[20,2,20,3],[20,4,20,5],[20,6,20,7],[20,8,20,9],[17,0,17,1],[17,2,17,3],[17,4,17,5],[17,6,17,7],[17,8,17,9],[18,0,18,9],[15,0,15,1],[15,2,15,3],[15,4,15,5],[15,6,15,7],[15,8,15,9],[16,0,16,3],[16,4,16,5],[16,6,16,7],[16,8,16,9],[11,0,11,1],[11,2,11,3],[11,4,11,5],[11,6,11,7],[11,8,11,9],[12,0,12,1],[12,2,12,3],[12,4,12,5],[12,6,12,7],[12,8,12,9],[9,0,9,9],[10,0,10,1],[10,2,10,3],[10,4,10,5],[10,6,10,7],[10,8,10,9],[2,0,2,4],[2,6,2,8],[3,1,3,4],[5,3,5,4],[5,6,5,7],[8,0,8,1],[8,2,8,3],[8,4,8,5],[8,6,8,7],[8,8,8,9]]}
[{"$f":"+'Cover Page'!C39","v":2025}," Annual Reporting Performance Form 1"]
[]
[{"$f":"+'Cover Page'!B31","v":"Permit EPR/NP3638ZS"},null,null,null,null,"Operator: ",{"$f":"+'Cover Page'!B37","v":"Viridor Peterborough Ltd"}]
["Facility:",{"$f":"+'Cover Page'!B33:I33","v":"Peterborough Energy Recovery Facility"},null,null,null,"Form:","Performance 1"]
[]
["Reporting  Period from: ",null,null,"2025-01-01",null,"to:","2025-12-31"]
[]
[{"$f":"+A1","v":2025},"Annual Reporting of Waste Disposal and Recovery"]
["Waste Description",null,"Disposal Route(s)",null,"Disposal Tonnes",null,"Recovery Tonnes",null,"% / tonne of waste incinerated"]
["1) Hazardous Wastes"]
["APC Residues",null,"OCO Tecnology",null,null,null,{"$f":"'Operational Data'!G35","v":1877.84},null,{"$f":"IF((E11+G11)>0,(E11+G11)/'Operational Data'!$G$24, \"-\")","v":2.0859134085562836E-2}]
["IBA",null,{"$f":"C20","v":"Johnsons/Fortis"},null,null,null,0,null,{"$f":"IF((E12+G12)>0,(E12+G12)/'Operational Data'!$G$24, \"-\")","v":"-"}]
["Waste Oils",null,"LWOL",null,null,null,{"$f":"'Operational Data'!G38","v":4.1999999999999993},null,{"$f":"IF((E13+G13)>0,(E13+G13)/'Operational Data'!$G$24, \"-\")","v":4.6653795402890507E-5}]
["Interceptor Sludge",null,"Augean",null,{"$f":"'Operational Data'!G39","v":128.80000000000001},null,null,null,{"$f":"IF((E14+G14)>0,(E14+G14)/'Operational Data'!$G$24, \"-\")","v":1.4307163923553091E-3}]
["Bag Filters",null,"RH Environmental ",null,{"$f":"'Operational Data'!G40","v":4.2},null,null,null,{"$f":"IF((E15+G15)>0,(E15+G15)/'Operational Data'!$G$24, \"-\")","v":4.6653795402890513E-5}]
["WEEE Waste",null,"Blackmore Ricotech",null,null,null,{"$f":"'Operational Data'!G42","v":0.60850000000000004},null,{"$f":"IF((E16+G16)>0,(E16+G16)/'Operational Data'!$G$24, \"-\")","v":6.7592463101568757E-6}]
["Total Hazardous Waste",null,null,null,{"$f":"SUM(E11:F16)","v":133},null,{"$f":"SUM(G11:H16)","v":1882.6485},null,{"$f":"IF((E17+G17)>0,(E17+G17)/'Operational Data'!$G$24, \"-\")","v":2.2389917315034084E-2}]
[]
["2) Non-Hazardous Wastes"]
["IBA",null,"Johnsons/Fortis",null,null,null,{"$f":"'Operational Data'!G36","v":17512.38},null,{"$f":"IF((E20+G20)>0,(E20+G20)/'Operational Data'!$G$24, \"-\")","v":0.19452833179468376}]
["Ferrous Metal",null,"Simms/BSH",null,null,null,{"$f":"'Operational Data'!G37","v":33.42},null,{"$f":"IF((E21+G21)>0,(E21+G21)/'Operational Data'!$G$24, \"-\")","v":3.7123091484871453E-4}]
["Process Water",null,"PCC",null,null,null,0,null,{"$f":"IF((E22+G22)>0,(E22+G22)/'Operational Data'!$G$24, \"-\")","v":"-"}]
[null,null,null,null,null,null,null,null,{"$f":"IF((E23+G23)>0,(E23+G23)/'Operational Data'!$G$24, \"-\")","v":"-"}]
[null,null,null,null,null,null,null,null,{"$f":"IF((E24+G24)>0,(E24+G24)/'Operational Data'!$G$24, \"-\")","v":"-"}]
[null,null,null,null,null,null,null,null,{"$f":"IF((E25+G25)>0,(E25+G25)/'Operational Data'!$G$24, \"-\")","v":"-"}]
[null,null,null,null,null,null,null,null,{"$f":"IF((E26+G26)>0,(E26+G26)/'Operational Data'!$G$24, \"-\")","v":"-"}]
["Total Non-Hazardous Waste",null,null,null,{"$f":"SUM(E20:F26)","v":0},null,{"$f":"SUM(G20:H26)","v":17545.8},null,{"$f":"IF((E27+G27)>0,(E27+G27)/'Operational Data'!$G$24, \"-\")","v":0.19489956270953246}]
["TOTAL WASTE",null,null,null,{"$f":"+E27+E17","v":133},null,{"$f":"+G27+G17","v":19428.448499999999},null,{"$f":"IF((E28+G28)>0,(E28+G28)/'Operational Data'!$G$24, \"-\")","v":0.21728948002456652}]
[]
["Operator’s comments :"]
[]
[]
[]
[]
[{"$f":"+A1","v":2025},"Annual Reporting of Water and Other Raw Material Usage"]
["Raw Material",null,null,null,"Usage",null,"Unit","Specific Usage",null,"Unit"]
["Mains Water",null,null,null,{"$f":"+'Operational Data'!G46/1000","v":50088},null,"m3",{"$f":"IF(E37>0,E37/'Operational Data'!$G$24,\"-\")","v":0.55637983431904281},null,"m3/te"]
["Total Water",null,null,null,{"$f":"+'Operational Data'!G47/1000+'Operational Data'!G46/1000","v":50423},null,"m3",{"$f":"IF(E38>0,E38/'Operational Data'!$G$24,\"-\")","v":0.56010102990474964},null,"m3/te"]
["Urea / Ammonia",null,null,null,{"$f":"+'Operational Data'!G48","v":193230},null,"kg",{"$f":"IF(E39>0,E39/'Operational Data'!$G$24,\"-\")","v":2.1464078299286986},null,"kg/te"]
["Activated Carbon",null,null,null,{"$f":"+'Operational Data'!G50","v":36420},null,"kg",{"$f":"IF(E40>0,E40/'Operational Data'!$G$24,\"-\")","v":0.40455505442220774},null,"kg/te"]
["Lime / hydrated lime / Sodium Bicarb.",null,null,null,{"$f":"+'Operational Data'!G51","v":1145110},null,"kg",{"$f":"IF(E41>0,E41/'Operational Data'!$G$24,\"-\")","v":12.719935155667608},null,"kg/te"]
[]
["Operator’s comments :"]
[]
[]
[]
[{"$f":"+A35","v":2025},"Annual Reporting of other performance indicators "]
["Parameter",null,"Results by Line"]
[null,null,"A1","A2","A3","A4","A5",null,"Turbine 1","Turbine 2"]
["Operating hours for the year, hours",null,{"$f":"'Operational Data'!G57","v":7647.4},null,null,null,null,null,{"$f":"'Operational Data'!G62","v":7611.7}]
["Number of periods of abnormal operation, qty.",null,0]
["Cumulative hours of abnormal operation for this year, hours",null,0]
[]
["Operator’s comments :"]
[]
[]
[]
["Signed: ",null,null,null,null,null,"Date:","2025-01-16"]

{"sheet":"Energy Form 1","index":5,"n_rows":29,"n_cols":8,"rows_kept":29,"cut":false,"hidden":false,"merged":[[15,0,15,2],[15,3,15,4],[15,6,15,8],[17,0,17,8],[18,0,24,8],[13,0,13,2],[13,3,13,4],[13,6,13,8],[14,0,14,2],[14,3,14,4],[14,6,14,8],[11,0,11,2],[11,3,11,4],[11,6,11,8],[12,0,12,2],[12,3,12,4],[12,6,12,8],[9,0,9,2],[9,3,9,4],[9,6,9,8],[10,0,10,2],[10,3,10,4],[10,6,10,8],[2,6,2,8],[4,1,4,4],[6,3,6,4],[6,6,6,7],[8,0,8,2],[8,3,8,4],[8,6,8,8]]}
[{"$f":"+'Cover Page'!C39","v":2025}," Annual Reporting of Energy Usage/Export"]
[]
[{"$f":"+'Cover Page'!B31","v":"Permit EPR/NP3638ZS"},null,null,null,null,"Operator: ",{"$f":"+'Cover Page'!B37","v":"Viridor Peterborough Ltd"}]
[]
["Facility:",{"$f":"+'Cover Page'!B33:I33","v":"Peterborough Energy Recovery Facility"},null,null,null,"Form:","Energy 1"]
[]
["Reporting  Period from: ",null,null,{"$f":"+'Perf. Form 1'!D6:E6","v":"2025-01-01"},null,"to:",{"$f":"+'Perf. Form 1'!G6:H6","v":"2025-12-31"}]
[]
["Energy Source",null,null,"Energy Usage",null,"Unit","Specific Usage (KWh/tonne incinerated"]
["Electricity Produced",null,null,{"$f":"+'Operational Data'!G27","v":63408},null,"MWh",{"$f":"+'Operational Data'!H27","v":704.33901402535275}]
["Electricity Imported   ",null,null,{"$f":"+'Operational Data'!G29","v":414},null,"MWh",{"$f":"+'Operational Data'!H29","v":4.5987312611420652}]
["Electricity Exported",null,null,{"$f":"+'Operational Data'!G28","v":55744},null,"MWh",{"$f":"+'Operational Data'!H28","v":619.20694546160212}]
["Fuel (Burner oil  White diesel)",null,null,{"$f":"('Operational Data'!G52+'Operational Data'!G53)/1000","v":364.49900000000002},null,"m3"]
["Steam/hot water exported",null,null,{"$f":"+'Operational Data'!G31","v":0},null,"GWh",{"$f":"+'Operational Data'!H31","v":"-"}]
[]
[]
[]
["Operator’s comments :"]
[]
[]
[]
[]
[]
[]
[]
[]
[]
[]
["Signed: ",null,null,null,null,null,"Date:",{"$f":"'Perf. Form 1'!$H$58","v":"2025-01-16"}]

{"sheet":"Permit Compliance","index":6,"n_rows":34,"n_cols":12,"rows_kept":34,"cut":false,"hidden":false,"merged":[[27,1,27,2],[28,1,28,2],[29,0,29,8],[19,7,19,8],[19,1,19,2],[19,3,19,5],[21,3,21,5],[25,3,25,5],[26,3,26,5],[27,3,27,5],[28,3,28,5],[21,1,21,2],[22,1,22,2],[22,3,22,5],[23,1,23,2],[23,3,23,5],[8,11,20,11],[31,0,31,10],[18,0,18,10],[36,1,36,3],[36,4,36,6],[36,7,36,9],[32,1,32,3],[32,4,32,6],[32,7,32,9],[33,1,33,3],[33,4,33,6],[33,7,33,9],[25,1,25,2],[26,1,26,2],[14,0,14,1],[14,2,14,4],[37,1,37,3],[37,4,37,6],[37,7,37,9],[34,1,34,3],[34,4,34,6],[34,7,34,9],[35,1,35,3],[35,4,35,6],[35,7,35,9],[14,5,14,8],[15,0,15,1],[16,2,16,4],[16,5,16,8],[15,2,15,4],[15,5,15,8],[16,0,16,1],[13,0,13,1],[13,2,13,4],[13,5,13,8],[7,0,7,1],[7,2,7,8],[8,0,8,1],[8,2,8,4],[8,5,8,8],[24,1,24,2],[24,3,24,5],[22,7,25,7],[38,4,38,8],[9,0,9,1],[9,2,9,4],[9,5,9,8],[10,0,10,1],[10,2,10,4],[10,5,10,8],[11,0,11,1],[11,2,11,4],[11,5,11,8],[12,0,12,1],[12,2,12,4],[12,5,12,8]]}
[{"$f":"+'Cover Page'!$B$29","v":"Annual Performance Report 2025"},null,null,null,{"$f":"+'Cover Page'!$B$33","v":"Peterborough Energy Recovery Facility"}]
[]
["Summary of Permit Compliance"]
[]
["Compliance with permit limits for continuously monitored pollutants"]
[]
["The plant met its emission limits as shown in the table below:"]
["Substance",null,"Percentage time compliant during operationNote 1",null,null,null,null,null,null,null,null,"Notes:"]
[null,null,"Half-hourly limit",null,null,"Daily limit",null,null,null,null,null,"Note 1: Please report to 2 decimal places, i.e. xx.xx%\n\nNote 2: Please enter into this table any permit non-compliances that the EA has given a CCS score for. Please also enter any other non-compliances which you have notified to the EA (e.g. ELV exceedances) but which have not yet been assessed by the EA. There is no need to enter any notifications which were subsequently assessed by the EA not to be permit breaches.  \n\nNote 3: Please enter information here (rather than just referencing the notifications that were sent to the EA) including where relevant the incineration line reference, pollutant and value of the measured result for any ELV exceedances.   \n\n"]
["Particulates",null,1,null,null,1]
["Oxides of nitrogen",null,1,null,null,1]
["Sulphur dioxide",null,0.99990000000000001,null,null,1]
["Carbon monoxide",null,"100.00% 95% of 10-min averages",null,null,1]
["Total organic carbon",null,0.99970000000000003,null,null,1]
["Hydrogen chloride",null,1,null,null,1]
["Ammonia",null,1,null,null,1]
[]
[]
["Summary of non-compliances under the permit Note 2"]
["Date","Summary of non-compliance Note 3",null,"Reason ",null,null,"Measures taken to prevent reoccurrence","CCS score if applicable*"]
[null,null,null,null,null,null,null,"Impact","Root cause"]
["2025-01-17","Half hourly SO2 exceedance:\n08:00 to 08:29 - 346.2 mg/m3",null,"Incoming waste containing plasterboard.",null,null,"Increased waste inspections, targetting incoming fly-tipped waste from PCC.\nFuel quality alert plan implemented, alerts shared with PCC.",0.1]
["2025-05-24","Half hourly TOC exceedance\n06:30 to 06:59 - 35.6 mg/m3",null,"Explosion on the grate, likely caused by a gas cannister",null,null,"Waste inspections, waste mixing. \nQuality alert re-issued to suppliers",0.1]
["2025-05-25","Half hourly TOC exceedance\n15:00 to 15:29 - 53.7 mg/m3",null,"Explosion on the grate, likely caused by a gas cannister. Schedule 5 was submitted 17/7/2025, resuting in an additional 0.1 score",null,null,"Waste inspections, waste mixing. \nQuality alert re-issued to suppliers. STL to bring CEMS reports to daily meeting for second verification. Automated CEMS reports uploaded to MonitorPro",null,0.1]
["2025-06-11","Half hourly TOC exceedance\n09:00 to 09:29 - 28.1 mg/m3",null,"Explosion on the grate, likely caused by a gas cannister",null,null,"Waste inspections, waste mixing. \nQuality alert re-issued to suppliers"]
["2025-06-26","Half hourly TOC exceedance\n09:00 to 09:29 - 47.5 mg/m3",null,"Explosion on the grate, likely caused by a gas cannister",null,null,"Waste inspections, waste mixing. \nQuality alert re-issued to suppliers"]
["2025-07-08","Half hourly TOC exceedance\n10:00 to 10:29 - 22.2 mg/m3",null,"Explosion on the grate, likely caused by a gas cannister",null,null,"Waste inspections, waste mixing. \nQuality alert re-issued to suppliers",0.1]
[]
[]
["*If the Environment Agency (EA) has given a Compliance Classification Scheme (CCS) score due to a permit non-compliance it should be entered here (CCS4 = No impact; CCS3 = Minor impact; CCS2 = Significant impact; CCS1 = Major impact). If the EA has not yet assessed a non-compliance which you have notified to them, these columns should be left blank. Enter N/A if no score was given for the root cause.  "]
[]
["Summary of any complaints received and actions to taken to resolve them."]
["Date","Summary of complaint [including Line/Reference]",null,null,"Reason (including whether substantiated by the operator or the EA)",null,null,"Measures taken to prevent reoccurrence"]
[null,"None"]

{"sheet":"Improvements","index":7,"n_rows":30,"n_cols":5,"rows_kept":30,"cut":false,"hidden":false,"merged":[[28,0,28,8],[29,0,34,8],[4,0,4,8],[5,0,10,8],[12,0,12,8],[13,0,18,8],[20,0,20,8],[21,0,26,8]]}
[{"$f":"+'Cover Page'!$B$29","v":"Annual Performance Report 2025"},null,null,null,{"$f":"+'Cover Page'!$B$33","v":"Peterborough Energy Recovery Facility"}]
[]
["Summary of Plant Improvements"]
[]
["Summary of any efficiency improvements that have been completed within the year."]
["In January 2025 the three air compressors were upgraded. Of the static plant on site, the compressors are one of the largest energy consumers. The replacement has improved efficiency with greater performance per Kwh consumed. \n\nThe upgrade of office lighting to LED lighting was completed in 2025. The replacement of lighting in the operational area continued throughout the year. "]
[]
[]
[]
[]
[]
[]
["Summary of any permit improvement conditions that have been completed within the year and the resulting environmental benefits."]
["No permit improvement conditions have been submitted in 2025"]
[]
[]
[]
[]
[]
[]
["Summary of any changes to the plant or operating techniques which required a variation to the permit and a summary of the resulting environmental impact."]
["EPR/NP3638ZS/V009 variation was issued on 15/08/2025. The variation authorises the move from 100 %ile to 97 %ile short-term emission limit for Total Organic Carbon, from 20 mg/m3 to 10 mg/m3. The changes allows for unavoidable short-term spikes in TOC emissions where the level could be above 20 mg/m3 for a short period of time. \n"]
[]
[]
[]
[]
[]
[]
["Summary of any other improvements made to the plant or planned to be made and a summary of the resulting environmental benefits."]
["No other improvements have been made to the plant in 2025"]

{"sheet":"Public Liasion","index":8,"n_rows":26,"n_cols":5,"rows_kept":26,"cut":false,"hidden":false,"merged":[[20,0,21,1],[20,2,21,8],[22,0,23,1],[22,2,23,8],[25,0,25,8],[17,0,17,1],[17,2,17,8],[18,0,18,1],[18,2,18,8],[19,0,19,1],[19,2,19,8],[16,0,16,1],[16,2,16,8],[5,0,5,1],[5,2,5,8],[6,0,7,1],[6,2,7,8],[8,0,9,1],[8,2,9,8],[10,0,11,1],[10,2,11,8],[12,0,13,1],[12,2,13,8],[15,0,15,8]]}
[{"$f":"+'Cover Page'!$B$29","v":"Annual Performance Report 2025"},null,null,null,{"$f":"+'Cover Page'!$B$33","v":"Peterborough Energy Recovery Facility"}]
[]
["Details of Public & Stakeholder Liaison"]
[]
["Summary of events held during the reporting year."]
["Date",null,"Description"]
["Bi-monthly",null,"Client liaisons with Peterborough City Council"]
[]
["Planned visits as requested.",null,"Organised school/college tours."]
[]
["Quarterly",null,"Viridor in Peterborough Meetings for the Viridor in Peterborough community fund - funding local projects based around sustainability, local need, community involvement, value for money and education"]
[]
[null,null,"We will hold community liaison meetings on request after no attendance by local companies or residents since August 2016."]
[]
[]
["List of events planned for next year"]
["Date",null,"Description"]
["Bi-monthly",null,"Client liaisons with Peterborough City Council"]
["Various",null,"Community and educational visits arranged through the visitor centre"]
["Quarterly",null,"Viridor in Peterborough Meetings for the Viridor in Peterborough community fund - funding local projects based around sustainability, local need, community involvement, value for money and education"]
[]
[]
[]
[]
[]
["If you wish to be involved in the public liasion programme, please contact Hayley Janceski hjanceski@viridor.co.uk tel/ 07880 299 734"]

{"sheet":"CO2 N2O","index":9,"n_rows":25,"n_cols":6,"rows_kept":25,"cut":false,"hidden":false,"merged":[[6,5,9,5],[22,2,22,3],[25,1,25,3],[16,2,16,3],[4,0,4,3],[9,0,9,3],[17,0,17,3],[13,0,13,3],[12,0,12,1],[8,2,8,3],[11,2,11,3],[19,2,19,3]]}
[{"$f":"+'Cover Page'!$B$29","v":"Annual Performance Report 2025"},null,{"$f":"+'Cover Page'!$B$33","v":"Peterborough Energy Recovery Facility"}]
[]
["Carbon dioxide emissions and biogenic content of waste inputs",null,null,null,null,"Notes:"]
[]
["Carbon dioxide emissions (all types of plant)"]
[null,"Annual mass of carbon dioxide released","tonnes ",96996]
[null,"Annual mass of carbon dioxide released per tonne of waste burned","t CO2 / t waste ",{"$f":"D6/'Operational Data'!G24","v":1.0774360806901828},null,"Note 1: All permits require operators to continuously monitor CO2 to EN14181 and flow to BS EN 16911-2 (unless otherwise agreed in writing). Operators must therefore use the results from these instruments to calculate their annual CO2 emissions. Where an operator does not have a flow meter calibrated to BS EN 16911-2, the averaged flow measurement from that year's periodic monitoring can be used instead. If the plant does not have calibrated CO2 CEMS, a suitably justified emissions factor can be used. \n\n"]
[null,"Annual mass of carbon dioxide released per MWh of energy exported","t CO2 / MWh export ",{"$f":"D6/'Operational Data'!G28","v":1.7400258323765787}]
[null,"Description of how annual carbon dioxide mass emission has been calculated. \nSee Note 1","A mass emission calculation using the percent of CO2 measured by FTIR in accordance with EN14181 and the stack flow measured in accordance with 16911-2."]
["Nitrous oxide emissions (only plants which use ammonia or urea to abate NOx emissions)"]
[null,"Annual mass emissions of nitrous oxide","tonnes N2O",13.247999999999999]
[null,"Description of how annual nitrous oxide mass emission has been calculated\nSee Note 2","A mass emission calculation using the concentration of Nitrous Oxide measured by FTIR in accordance with EN14181 and the stack flow measured in accordance with 16911-2.",null,null,"Note 2: All permits require operators to continuously monitor N2O to EN14181 and flow to BS EN 16911-2, unless otherwise agreed in writing. Operators must therefore use the results from these instruments to calculate their annual N2O emissions. Where an operator does not have a flow meter calibrated to BS EN 16911-2, the averaged flow measurement from periodic monitoring can be used instead. If the plant does not have calibrated N2O CEMS, data from periodic monitoring or a suitably justified emissions factor can be used instead."]
["Total annual carbon dioxide + nitrous oxide emissions. \nSee Note 3. ",null,"tonnes CO2e",{"$f":"D6+265*D11","v":100506.72},null,"Note 3: Total annual carbon dioxide and nitrous oxide emissions reported as carbon dioxide equivalent where 1 tonne nitrous oxide is equivalent to 265 tonnes carbon dioxide."]
["Biogenic CO2 emissions (See Note 4)",null,null,null,null,"Note 4: Only plants combusting residual municipal waste, refuse derived fuel or solid recovered fuel need complete this section. "]
[null,"Percentage of total carbon dioxide emissions arising from biogenic waste","%",0.50600000000000001]
[null,"No. of measurements undertaken","Number",6]
[null,"Description of how percentage biogenic carbon dioxide emissions have been measured or calculated.\nSee Note 5","Result of C14 analysis (Installed sampler).\nFigure is the annual average figure from the monthly cartiridge laboratory results.",null,null,"Note 5: The results from C14 sampling should be used if this is carried out at the plant (either via an installed sampler or from spot samples).  \nOtherwise, as an approximation (and in lieu of any more accurate metrics which may be developed in future), the measured or estimated biogenic fraction by net calorific value (see Note 6) can be assumed to be the same as the biogenic CO2 fraction of the total CO2 emissions from the plant. "]
["Biogenic fraction of waste feedstock (See Note 4)"]
[null,"Yearly average biogenic percentage of the waste by net calorific value (NCV)","%",0.69299999999999995]
[null,"Description of how biogenic percentage (by NCV) has been calculated or estimated. \nSee Note 6","Waste Sampling\nThe method used is the selective dissolution method as defined in BS EN ISO 21644:2021. This method involves treatment of the sample with concentrated sulphuric acid and hydrogen peroxide. Generally, the biomass in the sample will selectively dissolve leaving a non-biomass residue. The original mass of sample and mass of residue are measured. The result is calculated from the mass values and the ash content to give a result in %.",null,null,"Note 6: If C14 sampling is carried out at the plant, the methodology set out in the embedded document entitled \"Renewable Energy Association Energy Content of Fuels - Description of Method\" embedded below can be used to calculate the biogenic percentage by net calorific value. Otherwise, data from waste sampling or BIOMA software can be used; or if none of these are available, an estimated figure with justification or a figure assumed on the basis of up-to-date industry data can be used. "]
[null,"Yearly average biogenic percentage of the waste by mass","%",0.70099999999999996]
[null,"If waste sampling undertaken, no. of samples used to ascertain average biogenic percentages above","Number",1]
[null,"Description of how biogenic percentage (by mass) has been calculated or estimated. \nSee Note 7","Waste sampling  ",null,null,"Note 7: Where available, data from waste sampling should be used; otherwise, an estimated figure with justification can be used, or a figure assumed on the basis of up-to-date industry data. "]
[]
[null,"Comments:"]

{"sheet":"Residues","index":10,"n_rows":52,"n_cols":11,"rows_kept":52,"cut":false,"hidden":false,"merged":[[52,0,57,6],[48,3,48,4],[51,0,51,6],[43,0,44,1],[45,0,45,1],[46,0,46,1],[47,0,47,1],[48,0,48,1],[45,3,45,4],[46,3,46,4],[45,5,45,6],[46,5,46,6],[47,5,47,6],[48,5,48,6],[49,0,49,6],[36,0,37,1],[36,2,37,6],[38,0,39,1],[38,2,39,6],[47,3,47,4],[43,2,44,2],[44,3,44,4],[44,5,44,6],[43,3,43,6],[42,0,42,6],[4,0,16,8],[4,10,13,13],[32,0,33,1],[32,2,33,6],[34,0,35,1],[34,2,35,6],[28,0,28,6],[29,0,29,1],[29,2,29,6],[21,0,22,6],[23,0,24,6],[25,0,26,6],[30,0,31,1],[30,2,31,6]]}
[{"$f":"+'Cover Page'!$B$29","v":"Annual Performance Report 2025"},null,null,null,{"$f":"+'Cover Page'!$B$33","v":"Peterborough Energy Recovery Facility"}]
[]
["Summary of Residue Handling for the reporting year"]
[]
["The IBA is collected from site by Johnsons Aggregates. They remove and recycle the ferrous and non-ferrous metals and then create IBAA (Incinerator Bottom Ash Aggregate) from the remaining material. Their Aggregates team then utilise this in various construction and highways projects.\n\nFrom 4/12/2025, the IBA processor was changed to Fortis. IBA is collected from site by Fortis and taken to the Calvert IBA processing facility (EPR/BP3637AF) in Buckinghamshire.\n\nThe APCr is collected by direct transfer from the on site silo into transport tanker by Grundons and goes to the O.C.O Technology Ltd (formally Carbon8) where it is taken through their accelerated carbonation technology to remove contaminants. These carbonated wastes are blended with binders and fillers and pellitised to form an aggregate. ",null,null,null,null,null,null,null,null,null,"Include in here a summary of residue handling regimes and destinations "]
[]
[]
[]
[]
[]
[]
[]
[]
[]
[]
[]
[]
[]
["Residue Quality Monitoring Requirements"]
[]
["Summary of monitoring undertaken and compliance"]
["IBA undergoes quarterly sampling as required by permit condition 3.5.1c and table 3.5 including TOC, dioxins & furans. TOC has a limit of <3%."]
[]
["24 samples of IBA are taken each year (including the 4 permit complaince samples) to undergo basic hazard analysis as required by the ESA protocol."]
[]
["APCr is sampled quarterly as per permit condition 3.5.1c and table 3.5"]
[]
[]
["Commentary on any specific events"]
["Date & Event",null,"Description"]
[null,null,"None"]
[]
[]
[]
[]
[]
[]
[]
[]
[]
[]
[]
["Residue Quality Monitoring Results"]
["Parameter (unit) ",null,"Limit*","Normal Operation "]
[null,null,null,"Bottom ash  ",null,"APC Residues"]
["Loss on Ignition (average %)",null,"<5%","-"]
["Total Organic Carbon (average %)",null,"<3%",8.8999999999999999E-3]
["No. of Assessments Undertaken",null,"---","4 permit compliance\n20 ESA hazard assessments ",null,4]
["No. of Hazardous Results",null,"---",0]
["* The permit will specify a limit of either 5% loss on ignition or 3% total organic carbon. If both are measured anyway, please enter the results here, even where the limit does not apply. "]
[]
["Comments :"]

{"sheet":"Water","index":11,"n_rows":25,"n_cols":9,"rows_kept":25,"cut":false,"hidden":false,"merged":[[29,0,29,2],[29,3,29,4],[26,0,26,2],[26,3,26,4],[27,0,27,2],[27,3,27,4],[28,0,28,2],[28,3,28,4],[23,0,23,2],[23,3,23,4],[24,0,24,2],[24,3,24,4],[25,0,25,2],[25,3,25,4],[21,0,21,8],[22,0,22,2],[22,3,22,4],[14,0,15,1],[14,2,15,8],[16,0,17,1],[16,2,17,8],[18,0,19,1],[18,2,19,8],[5,0,6,8],[7,0,8,8],[9,0,10,8],[12,0,12,8],[13,0,13,1],[13,2,13,8]]}
[{"$f":"+'Cover Page'!$B$29","v":"Annual Performance Report 2025"},null,null,null,{"$f":"+'Cover Page'!$B$33","v":"Peterborough Energy Recovery Facility"}]
[]
["Emissions to Water"]
[]
["Summary of monitoring undertaken and compliance"]
["Samples and visual checks undertaken monthly. The Penstocks remains closed unless otherwise directed. "]
[]
["Qtr PPM operational checks on the penstock gate valves."]
[]
[]
[]
[]
["Commentary on any specific events"]
["Date & Event",null,"Description"]
[null,null,"None"]
[]
[]
[]
[]
[]
[]
["Emissions to Water / Sewer"]
["Parameter",null,null,"Monitoring Frequency",null,"Limit","Target","Max.","Average"]
["W1 Emission to water course - No limit set. Uncontaminated water, free of visible oil and grease",null,null,"-",null,"None"]
["S1 Emission to Anglican Water - No limits set in permit",null,null,"-",null,"None"]

{"sheet":"Air (periodic)","index":12,"n_rows":40,"n_cols":11,"rows_kept":40,"cut":false,"hidden":false,"merged":[[13,10,14,12],[15,10,16,10],[15,11,16,11],[15,12,16,12],[18,3,18,4],[13,3,13,4],[14,3,14,4],[15,3,15,4],[16,3,16,4],[17,3,17,4],[24,3,24,4],[25,3,25,4],[32,3,32,4],[26,3,26,4],[27,3,27,4],[29,3,29,4],[19,0,19,1],[20,0,20,1],[21,0,21,1],[35,3,35,4],[36,3,36,4],[34,0,34,1],[35,0,35,1],[36,0,36,1],[25,0,25,1],[33,3,33,4],[28,3,28,4],[34,3,34,4],[19,3,19,4],[20,3,20,4],[21,3,21,4],[23,3,23,4],[38,3,38,4],[30,3,30,4],[31,3,31,4],[37,3,37,4],[39,0,39,9],[37,0,37,1],[18,0,18,1],[13,0,13,1],[14,0,14,1],[15,0,15,1],[40,0,41,9],[26,0,26,1],[27,0,27,1],[23,0,23,1],[24,0,24,1],[38,0,38,1],[28,0,28,1],[29,0,29,1],[30,0,30,1],[31,0,31,1],[32,0,32,1],[33,0,33,1],[22,0,22,1],[22,3,22,4],[5,10,8,13],[9,10,11,13],[8,0,8,9],[5,0,6,9],[11,0,11,1],[12,0,12,1],[11,3,11,4],[12,3,12,4],[9,0,10,1],[9,5,9,9],[9,3,10,4],[9,2,10,2],[16,0,16,1],[17,0,17,1]]}
[{"$f":"+'Cover Page'!$B$29","v":"Annual Performance Report 2025"},null,null,null,{"$f":"+'Cover Page'!$B$33","v":"Peterborough Energy Recovery Facility"}]
[]
["Emissions to Air (periodically monitored)"]
[]
["Summary of monitoring undertaken, standards used and compliance",null,null,null,null,null,null,null,null,null,"Notes:"]
["Biannual 1: 27th to 29th May 2025                                                                                                                                        \nBiannual 2: 7th to 11th July 2025 (including PAHs)                                                                                                                \n",null,null,null,null,null,null,null,null,null,"Template may require adjustment for any bespoke monitoring requirements of permit - please also check that all default ELV values, reference periods and the stated oxygen reference value match those for your plant, and edit if necessary!"]
[]
[]
["Results of emissions to air that are periodically monitored - oxygen reference 11% "]
["Substance",null,"Ref. Period","Emission Limit Value",null,"AVERAGE",null,null,null,null,"User to add additional tables as necessary, depending on whether quarterly or bi-annual reporting is required for the compliance year"]
[null,null,null,null,null,"Line 1","Line 2","Line 3","Line 4","Line 5"]
["Hydrogen fluoride",null,"1 hr","1 mg/m3",null,0.152]
["Cd and Tl and their compounds",null,"0.5-8hrs","0.02 mg/m3",null,1E-3]
["Hg and its compounds",null,"0.5-8hrs","0.02 mg/m3",null,9.6499999999999993E-4]
["Sb, As, Pb, Cr, Co, Cu, Mn, Ni, V and their compounds",null,"0.5-8hrs","0.3 mg/m3",null,1.6250000000000001E-2]
["Dioxins & Furans (I-TEQ)",null,"6-8hrs","0.06 ng/m3",null,2.0950000000000001E-3]
["PCBs (WHO-TEQ Humans / Mammals)",null,"6-8hrs","None set ng/m3",null,1.0950000000000001E-4]
["PCBs (WHO-TEQ Fish)",null,"6-8hrs","None set ng/m3",null,8.0499999999999992E-6]
["PCBs (WHO-TEQ Birds)",null,"6-8hrs","None set ng/m3",null,5.2499999999999997E-4]
["Dioxins & Furans (WHO-TEQ Humans / Mammals)",null,"6-8hrs","None set ng/m3",null,1.9499999999999999E-3]
["Dioxins & Furans (WHO-TEQ Fish)",null,"6-8hrs","None set ng/m3",null,1.9499999999999999E-3]
["Dioxins & Furans (WHO-TEQ Birds)",null,"6-8hrs","None set ng/m3",null,4.9500000000000004E-3]
["Polybrominated dibenzo-dioxins and furans",null,"6-8hrs","None set µg/m3",null,3.7499999999999999E-3]
["Anthanthrene",null,"6-8hrs","None set µg/m3",null,1.1000000000000001E-3]
["Benzo(a)anthracene",null,"6-8hrs","None set µg/m3",null,1.6999999999999999E-3]
["Benzo(a)pyrene",null,"6-8hrs","None set µg/m3",null,2.2000000000000001E-3]
["Benzo(b)fluoranthene",null,"6-8hrs","None set µg/m3",null,1.1000000000000001E-3]
["Benzo(b)naptho(2,1-d) thiophene",null,"6-8hrs","None set µg/m3",null,1.1000000000000001E-3]
["Benzo(c)phenanthrene",null,"6-8hrs","None set µg/m3",null,1.1000000000000001E-3]
["Benzo(ghi)perylene",null,"6-8hrs","None set µg/m3",null,1.4E-3]
["Benzo(k)fluoranthene",null,"6-8hrs","None set µg/m3",null,1.1000000000000001E-3]
["Cholanthrene",null,"6-8hrs","None set µg/m3",null,1.1000000000000001E-3]
["Chrysene",null,"6-8hrs","None set µg/m3",null,2.5999999999999999E-3]
["Cyclopenta(cd)pyrene",null,"6-8hrs","None set µg/m3",null,1.1000000000000001E-3]
["Dibenzo(ai)pyrene",null,"6-8hrs","None set µg/m3",null,1.1000000000000001E-3]
["Dibenzo(ah)anthracene",null,"6-8hrs","None set µg/m3",null,1.1000000000000001E-3]
["Fluoranthene",null,"6-8hrs","None set µg/m3",null,3.9E-2]
["Indeno(123-cd) pyrene",null,"6-8hrs","None set µg/m3",null,1.1000000000000001E-3]
["Naphthalene",null,"6-8hrs","None set µg/m3",null,1.1000000000000001E-3]
["Comments :"]

{"sheet":"Air (CEMS)","index":13,"n_rows":28,"n_cols":14,"rows_kept":28,"cut":false,"hidden":false,"merged":[[28,0,29,12],[13,0,14,0],[5,0,6,12],[7,0,8,12],[10,0,10,12],[11,0,12,0],[11,2,12,2],[11,1,12,1],[11,3,11,4],[11,5,11,6],[11,7,11,8],[11,9,11,10],[11,11,11,12],[14,13,15,13],[14,14,15,14],[14,15,15,15],[12,13,13,15],[26,0,26,12]]}
[{"$f":"+'Cover Page'!$B$29","v":"Annual Performance Report 2025"},null,null,null,null,null,null,null,{"$f":"+'Cover Page'!$B$33","v":"Peterborough Energy Recovery Facility"}]
[]
["Emissions to Air (continuously monitored)"]
[null,null,null,null,null,null,null,null,null,null,null,null,null,"Notes:"]
["Summary of monitoring undertaken, standards used and compliance",null,null,null,null,null,null,null,null,null,null,null,null,"Template may require adjustment for any bespoke monitoring requirements of permit"]
["The monitoring standards utilised during this testing conformed to those stipulated within Table S3.1 of the Permit. Viridor note, in line with Permit variation dated 21 April 2015; 30 minute carbon monoxide (CO) average monitoring was replaced with CO 10 minute average monitoring.",null,null,null,null,null,null,null,null,null,null,null,null,"Please check that all default ELV values match those for your plant and edit if necessary!"]
[null,null,null,null,null,null,null,null,null,null,null,null,null,"Report to 1 decimal place"]
["Permit variation dated 21 April 2015; 30 minute carbon monoxide (CO) average monitoring was replaced with CO 10 minute average monitoring.\nPermit variation (V009) dated 15 August 2025; TOC short-term ELV was replaced with a 97 %ile ELV of 10 mg/m3. See TOC tab 'comments' section for details of 2025 TOC monitoring."]
[]
[]
["Results of emissions to air that are continuously monitored (maximum and average values for each line) - oxygen reference 11%"]
["Substance","Reference Period","Emission Limit Value","A1",null,"A2",null,"A3",null,"A4",null,"A5"]
[null,null,null,"Max.","Avg.","Max.","Avg.","Max.","Avg.","Max.","Avg.","Max.","Avg."]
["Oxides of nitrogen","Daily mean","150 mg/m3 ",{"$f":"NOx!O19","v":133.6},{"$f":"NOx!N19","v":106.08333333333333}]
[null,"½ hourly mean","400 mg/m3 ",{"$f":"NOx!M19","v":247.8},{"$f":"NOx!L19","v":106.14999999999999}]
["Particulates","Daily mean","5 mg/m3",{"$f":"Particulates!O19","v":4.4000000000000004},{"$f":"Particulates!N19","v":0.39999999999999997}]
[null,"½ hourly mean","30 mg/m3 ",{"$f":"Particulates!M19","v":20},{"$f":"Particulates!L19","v":0.42499999999999988}]
["Total Organic Carbon ","Daily mean","10 mg/m3 ",{"$f":"TOC!O19","v":5.6},{"$f":"TOC!N19","v":1.6499999999999997}]
[null,"½ hourly mean","20 mg/m3 ",{"$f":"TOC!M19","v":53.7},{"$f":"TOC!L19","v":1.7}]
["Hydrogen chloride ","Daily mean","8 mg/m3 ",{"$f":"HCl!O19","v":7.4},{"$f":"HCl!N19","v":6.2333333333333334}]
[null,"½ hourly mean","60 mg/m3 ",{"$f":"HCl!M19","v":57.1},{"$f":"HCl!L19","v":6.2250000000000014}]
["Sulphur dioxide","Daily mean","40 mg/m3 ",{"$f":"'SO2'!O19","v":35.700000000000003},{"$f":"'SO2'!N19","v":15.366666666666669}]
[null,"½ hourly mean","200 mg/m3 ",{"$f":"'SO2'!M19","v":346.2},{"$f":"'SO2'!L19","v":15.450000000000003}]
["Carbon monoxide ","Daily mean","50 mg/m3 ",{"$f":"'CO 95% 10 min'!Q20","v":11.7},{"$f":"'CO 95% 10 min'!P20","v":4.458333333333333}]
[null,"95%ile 10-min avg *","150 mg/m3 *",{"$f":"'CO 95% 10 min'!M20","v":15.575000000000001},{"$f":"'CO 95% 10 min'!N20","v":5.0166666666666657}]
[" Ammonia","Daily mean","15 mg/m3 ",{"$f":"'NH3'!O19","v":6.7},{"$f":"'NH3'!N19","v":1.0000000000000002}]
["* = delete as appropriate, depending on whether your plant has half-hourly or 10-min CO ELVs\n"]
["Comments :"]

{"sheet":"HCl","index":14,"n_rows":79,"n_cols":17,"rows_kept":79,"cut":false,"hidden":false,"merged":[[12,16,15,18],[51,9,63,9],[66,9,78,9],[4,9,4,14],[4,1,4,3],[4,4,4,6],[48,0,51,6],[47,0,47,6],[6,9,18,9],[21,9,33,9],[36,9,48,9],[3,16,7,18],[9,16,11,18],[18,4,18,6]]}
[{"$f":"+'Cover Page'!$B$29","v":"Annual Performance Report 2025"},null,null,null,{"$f":"+'Cover Page'!$B$33","v":"Peterborough Energy Recovery Facility"}]
[]
["Monitoring of Hydrogen Chloride emissions",null,null,"Whole Installation",null,null,"See  Notes in Cell Q3",null,null,{"$f":"+A3","v":"Monitoring of Hydrogen Chloride emissions"},null,null,null,"Per Combustion Line",null,null,"Notes:"]
[null,null,null,null,null,null,null,null,null,null,null,null,null,null,null,null,"User to add logic to complete Whole installation, Table A5:G18. From the data in Per Combustion Line, Table J6:O79, subject to No. of lines installed"]
[{"$f":"+'Cover Page'!C39","v":2025},"1/2 Hourly Reference Periods",null,null,"Daily Reference Periods"]
["mg/Nm3","1/2 hourly HCl ELV","Monthly mean of half-hourly averages","Highest half- hourly average","Daily HCl ELV","Monthly mean of  daily averages","Highest daily average",null,null,{"$f":"+A5","v":2025},"mg/Nm3","Monthly mean of half-hourly averages","Highest half- hourly average","Monthly mean of  daily averages","Highest daily average"]
["Jan",60,{"$f":"L7","v":6.3},{"$f":"M7","v":20.6},8,{"$f":"N7","v":6.3},{"$f":"O7","v":7.2},null,null,"A1","Jan",6.3,20.6,6.3,7.2]
["Feb",60,{"$f":"L8","v":6.1},{"$f":"M8","v":47.2},8,{"$f":"N8","v":6.1},{"$f":"O8","v":7.2},null,null,null,"Feb",6.1,47.2,6.1,7.2]
["Mar",60,6.1,57.1,8,6.3,6.8,null,null,null,"Mar",6.1,57.1,6.3,6.8,null,"Whole Installation table A5:G18:"]
["Apr",60,5.2,11,8,5.3,6.7,null,null,null,"Apr",5.2,11,5.3,6.7,null,"Mean: for 1/2 hourly and daily periods calculate mean of values across all operational combustion lines for the month"]
["May",60,6.4,39.5,8,6.3,7,null,null,null,"May",6.4,39.5,6.3,7]
["Jun",60,6.6,28.5,8,6.6,7.1,null,null,null,"Jun",6.6,28.5,6.6,7.1]
["Jul",60,6.6,21.3,8,6.6,7.1,null,null,null,"Jul",6.6,21.3,6.6,7.1,null,"Maximum: for 1/2 hourly and daily periods use the highest value across all operational combustion lines for the month"]
["Aug",60,6.5,15.3,8,6.6,7.2,null,null,null,"Aug",6.5,15.3,6.6,7.2]
["Sep",60,6.6,16.399999999999999,8,6.7,7.4,null,null,null,"Sep",6.6,16.399999999999999,6.7,7.4]
["Oct",60,6.5,13.9,8,6.4,7.4,null,null,null,"Oct",6.5,13.9,6.4,7.4]
["Nov",60,5.9,12.3,8,5.8,7,null,null,null,"Nov",5.9,12.3,5.8,7]
["Dec",60,5.9,13.4,8,5.8,6.9,null,null,null,"Dec",5.9,13.4,5.8,6.9]
[null,null,null,null,null,null,null,null,null,null,"Annual",{"$f":"AVERAGE(L7:L18)","v":6.2250000000000014},{"$f":"MAX(M7:M18)","v":57.1},{"$f":"AVERAGE(N7:N18)","v":6.2333333333333334},{"$f":"MAX(O7:O18)","v":7.4}]
[]
[null,null,null,null,null,null,null,null,null,{"$f":"+A5","v":2025},"mg/Nm3","Monthly mean of half-hourly averages","Highest half- hourly average","Monthly mean of  daily averages","Highest daily average"]
[null,null,null,null,null,null,null,null,null,"A2","Jan"]
[null,null,null,null,null,null,null,null,null,null,"Feb"]
[null,null,null,null,null,null,null,null,null,null,"Mar"]
[null,null,null,null,null,null,null,null,null,null,"Apr"]
[null,null,null,null,null,null,null,null,null,null,"May"]
[null,null,null,null,null,null,null,null,null,null,"Jun"]
[null,null,null,null,null,null,null,null,null,null,"Jul"]
[null,null,null,null,null,null,null,null,null,null,"Aug"]
[null,null,null,null,null,null,null,null,null,null,"Sep"]
[null,null,null,null,null,null,null,null,null,null,"Oct"]
[null,null,null,null,null,null,null,null,null,null,"Nov"]
[null,null,null,null,null,null,null,null,null,null,"Dec"]
[null,null,null,null,null,null,null,null,null,null,"Annual",{"$f":"AVERAGE(L22:L33)","v":{"$error":"#DIV/0!"}},{"$f":"MAX(M22:M33)","v":0},{"$f":"AVERAGE(N22:N33)","v":{"$error":"#DIV/0!"}},{"$f":"MAX(O22:O33)","v":0}]
[]
[null,null,null,null,null,null,null,null,null,{"$f":"+A5","v":2025},"mg/Nm3","Monthly mean of half-hourly averages","Highest half- hourly average","Monthly mean of  daily averages","Highest daily average"]
[null,null,null,null,null,null,null,null,null,"A3","Jan"]
[null,null,null,null,null,null,null,null,null,null,"Feb"]
[null,null,null,null,null,null,null,null,null,null,"Mar"]
[null,null,null,null,null,null,null,null,null,null,"Apr"]
[null,null,null,null,null,null,null,null,null,null,"May"]
[null,null,null,null,null,null,null,null,null,null,"Jun"]
[null,null,null,null,null,null,null,null,null,null,"Jul"]
[null,null,null,null,null,null,null,null,null,null,"Aug"]
[null,null,null,null,null,null,null,null,null,null,"Sep"]
[null,null,null,null,null,null,null,null,null,null,"Oct"]
[null,null,null,null,null,null,null,null,null,null,"Nov"]
["Comments :",null,null,null,null,null,null,null,null,null,"Dec"]
["19/11/2025 the CEMS air drier 1 unit tripped and required re-setting. Originally this caused the CEMS half-hour average from 07:00-07:29 to register as 'invalid' however the data has been retrieved. The CEMS was cotinuously monitoring emissions during this period.",null,null,null,null,null,null,null,null,null,"Annual",{"$f":"AVERAGE(L37:L48)","v":{"$error":"#DIV/0!"}},{"$f":"MAX(M37:M48)","v":0},{"$f":"AVERAGE(N37:N48)","v":{"$error":"#DIV/0!"}},{"$f":"MAX(O37:O48)","v":0}]
[]
[null,null,null,null,null,null,null,null,null,{"$f":"+A5","v":2025},"mg/Nm3","Monthly mean of half-hourly averages","Highest half- hourly average","Monthly mean of  daily averages","Highest daily average"]
[null,null,null,null,null,null,null,null,null,"A4","Jan"]
[null,null,null,null,null,null,null,null,null,null,"Feb"]
[null,null,null,null,null,null,null,null,null,null,"Mar"]
[null,null,null,null,null,null,null,null,null,null,"Apr"]
[null,null,null,null,null,null,null,null,null,null,"May"]
[null,null,null,null,null,null,null,null,null,null,"Jun"]
[null,null,null,null,null,null,null,null,null,null,"Jul"]
[null,null,null,null,null,null,null,null,null,null,"Aug"]
[null,null,null,null,null,null,null,null,null,null,"Sep"]
[null,null,null,null,null,null,null,null,null,null,"Oct"]
[null,null,null,null,null,null,null,null,null,null,"Nov"]
[null,null,null,null,null,null,null,null,null,null,"Dec"]
[null,null,null,null,null,null,null,null,null,null,"Annual",{"$f":"AVERAGE(L52:L63)","v":{"$error":"#DIV/0!"}},{"$f":"MAX(M52:M63)","v":0},{"$f":"AVERAGE(N52:N63)","v":{"$error":"#DIV/0!"}},{"$f":"MAX(O52:O63)","v":0}]
[]
[null,null,null,null,null,null,null,null,null,{"$f":"+A5","v":2025},"mg/Nm3","Monthly mean of half-hourly averages","Highest half- hourly average","Monthly mean of  daily averages","Highest daily average"]
[null,null,null,null,null,null,null,null,null,"A5","Jan"]
[null,null,null,null,null,null,null,null,null,null,"Feb"]
[null,null,null,null,null,null,null,null,null,null,"Mar"]
[null,null,null,null,null,null,null,null,null,null,"Apr"]
[null,null,null,null,null,null,null,null,null,null,"May"]
[null,null,null,null,null,null,null,null,null,null,"Jun"]
[null,null,null,null,null,null,null,null,null,null,"Jul"]
[null,null,null,null,null,null,null,null,null,null,"Aug"]
[null,null,null,null,null,null,null,null,null,null,"Sep"]
[null,null,null,null,null,null,null,null,null,null,"Oct"]
[null,null,null,null,null,null,null,null,null,null,"Nov"]
[null,null,null,null,null,null,null,null,null,null,"Dec"]
[null,null,null,null,null,null,null,null,null,null,"Annual",{"$f":"AVERAGE(L67:L78)","v":{"$error":"#DIV/0!"}},{"$f":"MAX(M67:M78)","v":0},{"$f":"AVERAGE(N67:N78)","v":{"$error":"#DIV/0!"}},{"$f":"MAX(O67:O78)","v":0}]

{"sheet":"SO2","index":15,"n_rows":79,"n_cols":17,"rows_kept":79,"cut":false,"hidden":false,"merged":[[3,16,7,18],[9,16,11,18],[12,16,15,18],[66,9,78,9],[4,1,4,3],[4,4,4,6],[4,9,4,14],[6,9,18,9],[21,9,33,9],[36,9,48,9],[47,0,47,6],[48,0,51,6],[51,9,63,9],[18,4,18,6]]}
[{"$f":"+'Cover Page'!$B$29","v":"Annual Performance Report 2025"},null,null,null,{"$f":"+'Cover Page'!$B$33","v":"Peterborough Energy Recovery Facility"}]
[]
["Monitoring of Sulphur dioxide emissions",null,null,"Whole Installation",null,null,"See  Notes in Cell Q3",null,null,{"$f":"+A3","v":"Monitoring of Sulphur dioxide emissions"},null,null,null,"Per Combustion Line",null,null,"Notes:"]
[null,null,null,null,null,null,null,null,null,null,null,null,null,null,null,null,"User to add logic to complete Whole installation, Table A5:G18. From the data in Per Combustion Line, Table J6:O79, subject to No. of lines installed"]
[{"$f":"+'Cover Page'!C39","v":2025},"1/2 Hourly Reference Periods",null,null,"Daily Reference Periods"]
["mg/Nm3","1/2 hourly SO2 ELV","Monthly mean of half-hourly averages","Highest half- hourly average","Daily SO2 ELV","Monthly mean of  daily averages","Highest daily average",null,null,{"$f":"+A5","v":2025},"mg/Nm3","Monthly mean of half-hourly averages","Highest half- hourly average","Monthly mean of  daily averages","Highest daily average"]
["Jan",200,{"$f":"L7","v":15.9},{"$f":"M7","v":346.2},40,{"$f":"N7","v":16.2},{"$f":"O7","v":35.700000000000003},null,null,"A1","Jan",15.9,346.2,16.2,35.700000000000003]
["Feb",200,{"$f":"L8","v":11},{"$f":"M8","v":61.3},40,{"$f":"N8","v":10.8},{"$f":"O8","v":16.600000000000001},null,null,null,"Feb",11,61.3,10.8,16.600000000000001]
["Mar",200,10.3,85.5,40,10.7,19.8,null,null,null,"Mar",10.3,85.5,10.7,19.8,null,"Whole Installation table A5:G18:"]
["Apr",200,21.2,66.400000000000006,40,19.399999999999999,23.9,null,null,null,"Apr",21.2,66.400000000000006,19.399999999999999,23.9,null,"Mean: for 1/2 hourly and daily periods calculate mean of values across all operational combustion lines for the month"]
["May",200,20.100000000000001,97.2,40,20.100000000000001,30.2,null,null,null,"May",20.100000000000001,97.2,20.100000000000001,30.2]
["Jun",200,16.899999999999999,64.8,40,16.8,20.8,null,null,null,"Jun",16.899999999999999,64.8,16.8,20.8]
["Jul",200,14.4,53.5,40,14.5,19,null,null,null,"Jul",14.4,53.5,14.5,19,null,"Maximum: for 1/2 hourly and daily periods use the highest value across all operational combustion lines for the month"]
["Aug",200,13.4,43.6,40,13.6,17,null,null,null,"Aug",13.4,43.6,13.6,17]
["Sep",200,16.600000000000001,72.599999999999994,40,16.899999999999999,25.1,null,null,null,"Sep",16.600000000000001,72.599999999999994,16.899999999999999,25.1]
["Oct",200,15.9,60.4,40,15.8,24.6,null,null,null,"Oct",15.9,60.4,15.8,24.6]
["Nov",200,14.4,170.2,40,14.3,20.5,null,null,null,"Nov",14.4,170.2,14.3,20.5]
["Dec",200,15.3,54.2,40,15.3,19.2,null,null,null,"Dec",15.3,54.2,15.3,19.2]
[null,null,null,null,null,null,null,null,null,null,"Annual",{"$f":"AVERAGE(L7:L18)","v":15.450000000000003},{"$f":"MAX(M7:M18)","v":346.2},{"$f":"AVERAGE(N7:N18)","v":15.366666666666669},{"$f":"MAX(O7:O18)","v":35.700000000000003}]
[]
[null,null,null,null,null,null,null,null,null,{"$f":"+A5","v":2025},"mg/Nm3","Monthly mean of half-hourly averages","Highest half- hourly average","Monthly mean of  daily averages","Highest daily average"]
[null,null,null,null,null,null,null,null,null,"A2","Jan"]
[null,null,null,null,null,null,null,null,null,null,"Feb"]
[null,null,null,null,null,null,null,null,null,null,"Mar"]
[null,null,null,null,null,null,null,null,null,null,"Apr"]
[null,null,null,null,null,null,null,null,null,null,"May"]
[null,null,null,null,null,null,null,null,null,null,"Jun"]
[null,null,null,null,null,null,null,null,null,null,"Jul"]
[null,null,null,null,null,null,null,null,null,null,"Aug"]
[null,null,null,null,null,null,null,null,null,null,"Sep"]
[null,null,null,null,null,null,null,null,null,null,"Oct"]
[null,null,null,null,null,null,null,null,null,null,"Nov"]
[null,null,null,null,null,null,null,null,null,null,"Dec"]
[null,null,null,null,null,null,null,null,null,null,"Annual",{"$f":"AVERAGE(L22:L33)","v":{"$error":"#DIV/0!"}},{"$f":"MAX(M22:M33)","v":0},{"$f":"AVERAGE(N22:N33)","v":{"$error":"#DIV/0!"}},{"$f":"MAX(O22:O33)","v":0}]
[]
[null,null,null,null,null,null,null,null,null,{"$f":"+A5","v":2025},"mg/Nm3","Monthly mean of half-hourly averages","Highest half- hourly average","Monthly mean of  daily averages","Highest daily average"]
[null,null,null,null,null,null,null,null,null,"A3","Jan"]
[null,null,null,null,null,null,null,null,null,null,"Feb"]
[null,null,null,null,null,null,null,null,null,null,"Mar"]
[null,null,null,null,null,null,null,null,null,null,"Apr"]
[null,null,null,null,null,null,null,null,null,null,"May"]
[null,null,null,null,null,null,null,null,null,null,"Jun"]
[null,null,null,null,null,null,null,null,null,null,"Jul"]
[null,null,null,null,null,null,null,null,null,null,"Aug"]
[null,null,null,null,null,null,null,null,null,null,"Sep"]
[null,null,null,null,null,null,null,null,null,null,"Oct"]
[null,null,null,null,null,null,null,null,null,null,"Nov"]
["Comments :",null,null,null,null,null,null,null,null,null,"Dec"]
[null,null,null,null,null,null,null,null,null,null,"Annual",{"$f":"AVERAGE(L37:L48)","v":{"$error":"#DIV/0!"}},{"$f":"MAX(M37:M48)","v":0},{"$f":"AVERAGE(N37:N48)","v":{"$error":"#DIV/0!"}},{"$f":"MAX(O37:O48)","v":0}]
[]
[null,null,null,null,null,null,null,null,null,{"$f":"+A5","v":2025},"mg/Nm3","Monthly mean of half-hourly averages","Highest half- hourly average","Monthly mean of  daily averages","Highest daily average"]
[null,null,null,null,null,null,null,null,null,"A4","Jan"]
[null,null,null,null,null,null,null,null,null,null,"Feb"]
[null,null,null,null,null,null,null,null,null,null,"Mar"]
[null,null,null,null,null,null,null,null,null,null,"Apr"]
[null,null,null,null,null,null,null,null,null,null,"May"]
[null,null,null,null,null,null,null,null,null,null,"Jun"]
[null,null,null,null,null,null,null,null,null,null,"Jul"]
[null,null,null,null,null,null,null,null,null,null,"Aug"]
[null,null,null,null,null,null,null,null,null,null,"Sep"]
[null,null,null,null,null,null,null,null,null,null,"Oct"]
[null,null,null,null,null,null,null,null,null,null,"Nov"]
[null,null,null,null,null,null,null,null,null,null,"Dec"]
[null,null,null,null,null,null,null,null,null,null,"Annual",{"$f":"AVERAGE(L52:L63)","v":{"$error":"#DIV/0!"}},{"$f":"MAX(M52:M63)","v":0},{"$f":"AVERAGE(N52:N63)","v":{"$error":"#DIV/0!"}},{"$f":"MAX(O52:O63)","v":0}]
[]
[null,null,null,null,null,null,null,null,null,{"$f":"+A5","v":2025},"mg/Nm3","Monthly mean of half-hourly averages","Highest half- hourly average","Monthly mean of  daily averages","Highest daily average"]
[null,null,null,null,null,null,null,null,null,"A5","Jan"]
[null,null,null,null,null,null,null,null,null,null,"Feb"]
[null,null,null,null,null,null,null,null,null,null,"Mar"]
[null,null,null,null,null,null,null,null,null,null,"Apr"]
[null,null,null,null,null,null,null,null,null,null,"May"]
[null,null,null,null,null,null,null,null,null,null,"Jun"]
[null,null,null,null,null,null,null,null,null,null,"Jul"]
[null,null,null,null,null,null,null,null,null,null,"Aug"]
[null,null,null,null,null,null,null,null,null,null,"Sep"]
[null,null,null,null,null,null,null,null,null,null,"Oct"]
[null,null,null,null,null,null,null,null,null,null,"Nov"]
[null,null,null,null,null,null,null,null,null,null,"Dec"]
[null,null,null,null,null,null,null,null,null,null,"Annual",{"$f":"AVERAGE(L67:L78)","v":{"$error":"#DIV/0!"}},{"$f":"MAX(M67:M78)","v":0},{"$f":"AVERAGE(N67:N78)","v":{"$error":"#DIV/0!"}},{"$f":"MAX(O67:O78)","v":0}]

{"sheet":"NOx","index":16,"n_rows":79,"n_cols":17,"rows_kept":79,"cut":false,"hidden":false,"merged":[[3,16,7,18],[9,16,11,18],[12,16,15,18],[66,9,78,9],[4,1,4,3],[4,4,4,6],[4,9,4,14],[6,9,18,9],[21,9,33,9],[36,9,48,9],[47,0,47,6],[48,0,51,6],[51,9,63,9],[18,4,18,6]]}
[{"$f":"+'Cover Page'!$B$29","v":"Annual Performance Report 2025"},null,null,null,{"$f":"+'Cover Page'!$B$33","v":"Peterborough Energy Recovery Facility"}]
[]
["Monitoring of Oxides of Nitrogen emissions",null,null,"Whole Installation",null,null,"See  Notes in Cell Q3",null,null,{"$f":"+A3","v":"Monitoring of Oxides of Nitrogen emissions"},null,null,null,"Per Combustion Line",null,null,"Notes:"]
[null,null,null,null,null,null,null,null,null,null,null,null,null,null,null,null,"User to add logic to complete Whole installation, Table A5:G18. From the data in Per Combustion Line, Table J6:O79, subject to No. of lines installed"]
[{"$f":"+'Cover Page'!C39","v":2025},"1/2 Hourly Reference Periods",null,null,"Daily Reference Periods"]
["mg/Nm3","1/2 hourly NOx ELV","Monthly mean of half-hourly averages","Highest half- hourly average","Daily NOx ELV","Monthly mean of  daily averages","Highest daily average",null,null,{"$f":"+A5","v":2025},"mg/Nm3","Monthly mean of half-hourly averages","Highest half- hourly average","Monthly mean of  daily averages","Highest daily average"]
["Jan",400,{"$f":"L7","v":116.7},{"$f":"M7","v":196},150,{"$f":"N7","v":116.8},{"$f":"O7","v":133.6},null,null,"A1","Jan",116.7,196,116.8,133.6]
["Feb",400,{"$f":"L8","v":112.4},{"$f":"M8","v":179.7},150,{"$f":"N8","v":112.4},{"$f":"O8","v":117.9},null,null,null,"Feb",112.4,179.7,112.4,117.9]
["Mar",400,110.4,247.8,150,110.6,125.3,null,null,null,"Mar",110.4,247.8,110.6,125.3,null,"Whole Installation table A5:G18:"]
["Apr",400,107.5,185.5,150,107.2,107.7,null,null,null,"Apr",107.5,185.5,107.2,107.7,null,"Mean: for 1/2 hourly and daily periods calculate mean of values across all operational combustion lines for the month"]
["May",400,105.6,215.4,150,105.6,107.9,null,null,null,"May",105.6,215.4,105.6,107.9]
["Jun",400,104.5,178.1,150,104.4,107.2,null,null,null,"Jun",104.5,178.1,104.4,107.2]
["Jul",400,104.5,140.69999999999999,150,104.5,107.3,null,null,null,"Jul",104.5,140.69999999999999,104.5,107.3,null,"Maximum: for 1/2 hourly and daily periods use the highest value across all operational combustion lines for the month"]
["Aug",400,105.3,180.8,150,105.2,107.8,null,null,null,"Aug",105.3,180.8,105.2,107.8]
["Sep",400,103.8,135.19999999999999,150,103.7,107.3,null,null,null,"Sep",103.8,135.19999999999999,103.7,107.3]
["Oct",400,103.3,123.2,150,103.2,107.6,null,null,null,"Oct",103.3,123.2,103.2,107.6]
["Nov",400,98.6,120.7,150,98.5,106.2,null,null,null,"Nov",98.6,120.7,98.5,106.2]
["Dec",400,101.2,122,150,100.9,106.4,null,null,null,"Dec",101.2,122,100.9,106.4]
[null,null,null,null,null,null,null,null,null,null,"Annual",{"$f":"AVERAGE(L7:L18)","v":106.14999999999999},{"$f":"MAX(M7:M18)","v":247.8},{"$f":"AVERAGE(N7:N18)","v":106.08333333333333},{"$f":"MAX(O7:O18)","v":133.6}]
[]
[null,null,null,null,null,null,null,null,null,{"$f":"+A5","v":2025},"mg/Nm3","Monthly mean of half-hourly averages","Highest half- hourly average","Monthly mean of  daily averages","Highest daily average"]
[null,null,null,null,null,null,null,null,null,"A2","Jan"]
[null,null,null,null,null,null,null,null,null,null,"Feb"]
[null,null,null,null,null,null,null,null,null,null,"Mar"]
[null,null,null,null,null,null,null,null,null,null,"Apr"]
[null,null,null,null,null,null,null,null,null,null,"May"]
[null,null,null,null,null,null,null,null,null,null,"Jun"]
[null,null,null,null,null,null,null,null,null,null,"Jul"]
[null,null,null,null,null,null,null,null,null,null,"Aug"]
[null,null,null,null,null,null,null,null,null,null,"Sep"]
[null,null,null,null,null,null,null,null,null,null,"Oct"]
[null,null,null,null,null,null,null,null,null,null,"Nov"]
[null,null,null,null,null,null,null,null,null,null,"Dec"]
[null,null,null,null,null,null,null,null,null,null,"Annual",{"$f":"AVERAGE(L22:L33)","v":{"$error":"#DIV/0!"}},{"$f":"MAX(M22:M33)","v":0},{"$f":"AVERAGE(N22:N33)","v":{"$error":"#DIV/0!"}},{"$f":"MAX(O22:O33)","v":0}]
[]
[null,null,null,null,null,null,null,null,null,{"$f":"+A5","v":2025},"mg/Nm3","Monthly mean of half-hourly averages","Highest half- hourly average","Monthly mean of  daily averages","Highest daily average"]
[null,null,null,null,null,null,null,null,null,"A3","Jan"]
[null,null,null,null,null,null,null,null,null,null,"Feb"]
[null,null,null,null,null,null,null,null,null,null,"Mar"]
[null,null,null,null,null,null,null,null,null,null,"Apr"]
[null,null,null,null,null,null,null,null,null,null,"May"]
[null,null,null,null,null,null,null,null,null,null,"Jun"]
[null,null,null,null,null,null,null,null,null,null,"Jul"]
[null,null,null,null,null,null,null,null,null,null,"Aug"]
[null,null,null,null,null,null,null,null,null,null,"Sep"]
[null,null,null,null,null,null,null,null,null,null,"Oct"]
[null,null,null,null,null,null,null,null,null,null,"Nov"]
["Comments :",null,null,null,null,null,null,null,null,null,"Dec"]
[null,null,null,null,null,null,null,null,null,null,"Annual",{"$f":"AVERAGE(L37:L48)","v":{"$error":"#DIV/0!"}},{"$f":"MAX(M37:M48)","v":0},{"$f":"AVERAGE(N37:N48)","v":{"$error":"#DIV/0!"}},{"$f":"MAX(O37:O48)","v":0}]
[]
[null,null,null,null,null,null,null,null,null,{"$f":"+A5","v":2025},"mg/Nm3","Monthly mean of half-hourly averages","Highest half- hourly average","Monthly mean of  daily averages","Highest daily average"]
[null,null,null,null,null,null,null,null,null,"A4","Jan"]
[null,null,null,null,null,null,null,null,null,null,"Feb"]
[null,null,null,null,null,null,null,null,null,null,"Mar"]
[null,null,null,null,null,null,null,null,null,null,"Apr"]
[null,null,null,null,null,null,null,null,null,null,"May"]
[null,null,null,null,null,null,null,null,null,null,"Jun"]
[null,null,null,null,null,null,null,null,null,null,"Jul"]
[null,null,null,null,null,null,null,null,null,null,"Aug"]
[null,null,null,null,null,null,null,null,null,null,"Sep"]
[null,null,null,null,null,null,null,null,null,null,"Oct"]
[null,null,null,null,null,null,null,null,null,null,"Nov"]
[null,null,null,null,null,null,null,null,null,null,"Dec"]
[null,null,null,null,null,null,null,null,null,null,"Annual",{"$f":"AVERAGE(L52:L63)","v":{"$error":"#DIV/0!"}},{"$f":"MAX(M52:M63)","v":0},{"$f":"AVERAGE(N52:N63)","v":{"$error":"#DIV/0!"}},{"$f":"MAX(O52:O63)","v":0}]
[]
[null,null,null,null,null,null,null,null,null,{"$f":"+A5","v":2025},"mg/Nm3","Monthly mean of half-hourly averages","Highest half- hourly average","Monthly mean of  daily averages","Highest daily average"]
[null,null,null,null,null,null,null,null,null,"A5","Jan"]
[null,null,null,null,null,null,null,null,null,null,"Feb"]
[null,null,null,null,null,null,null,null,null,null,"Mar"]
[null,null,null,null,null,null,null,null,null,null,"Apr"]
[null,null,null,null,null,null,null,null,null,null,"May"]
[null,null,null,null,null,null,null,null,null,null,"Jun"]
[null,null,null,null,null,null,null,null,null,null,"Jul"]
[null,null,null,null,null,null,null,null,null,null,"Aug"]
[null,null,null,null,null,null,null,null,null,null,"Sep"]
[null,null,null,null,null,null,null,null,null,null,"Oct"]
[null,null,null,null,null,null,null,null,null,null,"Nov"]
[null,null,null,null,null,null,null,null,null,null,"Dec"]
[null,null,null,null,null,null,null,null,null,null,"Annual",{"$f":"AVERAGE(L67:L78)","v":{"$error":"#DIV/0!"}},{"$f":"MAX(M67:M78)","v":0},{"$f":"AVERAGE(N67:N78)","v":{"$error":"#DIV/0!"}},{"$f":"MAX(O67:O78)","v":0}]

{"sheet":"TOC","index":17,"n_rows":79,"n_cols":17,"rows_kept":79,"cut":false,"hidden":false,"merged":[[3,16,7,18],[9,16,11,18],[12,16,15,18],[66,9,78,9],[4,1,4,3],[4,4,4,6],[4,9,4,14],[6,9,18,9],[21,9,33,9],[36,9,48,9],[47,0,47,6],[48,0,51,6],[51,9,63,9]]}
[{"$f":"+'Cover Page'!$B$29","v":"Annual Performance Report 2025"},null,null,null,{"$f":"+'Cover Page'!$B$33","v":"Peterborough Energy Recovery Facility"}]
[]
["Monitoring of Total organic carbon emissions",null,null,"Whole Installation",null,null,"See  Notes in Cell Q3",null,null,{"$f":"+A3","v":"Monitoring of Total organic carbon emissions"},null,null,null,"Per Combustion Line",null,null,"Notes:"]
[null,null,null,null,null,null,null,null,null,null,null,null,null,null,null,null,"User to add logic to complete Whole installation, Table A5:G18. From the data in Per Combustion Line, Table J6:O79, subject to No. of lines installed"]
[{"$f":"+'Cover Page'!C39","v":2025},"1/2 Hourly Reference Periods",null,null,"Daily Reference Periods"]
["mg/Nm3","1/2 hourly TOC ELV","Monthly mean of half-hourly averages","Highest half- hourly average","Daily TOC ELV","Monthly mean of  daily averages","Highest daily average",null,null,{"$f":"+A5","v":2025},"mg/Nm3","Monthly mean of half-hourly averages","Highest half- hourly average","Monthly mean of  daily averages","Highest daily average"]
["Jan",20,{"$f":"L7","v":0.8},{"$f":"M7","v":14.7},10,{"$f":"N7","v":0.8},{"$f":"O7","v":1.5},null,null,"A1","Jan",0.8,14.7,0.8,1.5]
["Feb",20,{"$f":"L8","v":0.5},{"$f":"M8","v":3.8},10,{"$f":"N8","v":0.5},{"$f":"O8","v":1.2},null,null,null,"Feb",0.5,3.8,0.5,1.2]
["Mar",20,1.2,11.4,10,1.2,1.9,null,null,null,"Mar",1.2,11.4,1.2,1.9,null,"Whole Installation table A5:G18:"]
["Apr",20,1.6,5.2,10,1.4,2.2000000000000002,null,null,null,"Apr",1.6,5.2,1.4,2.2000000000000002,null,"Mean: for 1/2 hourly and daily periods calculate mean of values across all operational combustion lines for the month"]
["May",20,1.5,53.7,10,1.4,2.5,null,null,null,"May",1.5,53.7,1.4,2.5]
["Jun",20,2.1,47.5,10,2,3.6,null,null,null,"Jun",2.1,47.5,2,3.6]
["Jul",20,1.9,22.2,10,1.8,2.6,null,null,null,"Jul",1.9,22.2,1.8,2.6,null,"Maximum: for 1/2 hourly and daily periods use the highest value across all operational combustion lines for the month"]
["Aug",20,2.2999999999999998,14.5,10,2.2999999999999998,3.2,null,null,null,"Aug",2.2999999999999998,14.5,2.2999999999999998,3.2]
["Sep",20,2.1,10.7,10,2.1,2.9,null,null,null,"Sep",2.1,10.7,2.1,2.9]
["Oct",20,2.4,8.1,10,2.4,5.6,null,null,null,"Oct",2.4,8.1,2.4,5.6]
["Nov",20,2,14.7,10,2,2.7,null,null,null,"Nov",2,14.7,2,2.7]
["Dec",20,2,8.8000000000000007,10,1.9,2.2999999999999998,null,null,null,"Dec",2,8.8000000000000007,1.9,2.2999999999999998]
[null,null,null,null,null,null,null,null,null,null,"Annual",{"$f":"AVERAGE(L7:L18)","v":1.7},{"$f":"MAX(M7:M18)","v":53.7},{"$f":"AVERAGE(N7:N18)","v":1.6499999999999997},{"$f":"MAX(O7:O18)","v":5.6}]
[]
[null,null,null,null,null,null,null,null,null,{"$f":"+A5","v":2025},"mg/Nm3","Monthly mean of half-hourly averages","Highest half- hourly average","Monthly mean of  daily averages","Highest daily average"]
[null,null,null,null,null,null,null,null,null,"A2","Jan"]
[null,null,null,null,null,null,null,null,null,null,"Feb"]
[null,null,null,null,null,null,null,null,null,null,"Mar"]
[null,null,null,null,null,null,null,null,null,null,"Apr"]
[null,null,null,null,null,null,null,null,null,null,"May"]
[null,null,null,null,null,null,null,null,null,null,"Jun"]
[null,null,null,null,null,null,null,null,null,null,"Jul"]
[null,null,null,null,null,null,null,null,null,null,"Aug"]
[null,null,null,null,null,null,null,null,null,null,"Sep"]
[null,null,null,null,null,null,null,null,null,null,"Oct"]
[null,null,null,null,null,null,null,null,null,null,"Nov"]
[null,null,null,null,null,null,null,null,null,null,"Dec"]
[null,null,null,null,null,null,null,null,null,null,"Annual",{"$f":"AVERAGE(L22:L33)","v":{"$error":"#DIV/0!"}},{"$f":"MAX(M22:M33)","v":0},{"$f":"AVERAGE(N22:N33)","v":{"$error":"#DIV/0!"}},{"$f":"MAX(O22:O33)","v":0}]
[]
[null,null,null,null,null,null,null,null,null,{"$f":"+A5","v":2025},"mg/Nm3","Monthly mean of half-hourly averages","Highest half- hourly average","Monthly mean of  daily averages","Highest daily average"]
[null,null,null,null,null,null,null,null,null,"A3","Jan"]
[null,null,null,null,null,null,null,null,null,null,"Feb"]
[null,null,null,null,null,null,null,null,null,null,"Mar"]
[null,null,null,null,null,null,null,null,null,null,"Apr"]
[null,null,null,null,null,null,null,null,null,null,"May"]
[null,null,null,null,null,null,null,null,null,null,"Jun"]
[null,null,null,null,null,null,null,null,null,null,"Jul"]
[null,null,null,null,null,null,null,null,null,null,"Aug"]
[null,null,null,null,null,null,null,null,null,null,"Sep"]
[null,null,null,null,null,null,null,null,null,null,"Oct"]
[null,null,null,null,null,null,null,null,null,null,"Nov"]
["Comments :",null,null,null,null,null,null,null,null,null,"Dec"]
["From 15/8/2025 new TOC permit limit 97% of all half-hour averages over a calendar year to be below 10 mg/m3\n\nCurrent 2025 97th percentiles:of 2.9 mg/m3\n\nCurrent total of half-hour averages above 10 mg/m3 is 5\n18/8/2025 04:00 to 04:29 - 13.8 mg/m3\n18/8/2025 06:00 to 06:29 - 12.2 mg/m3\n19/8/2025 23:30 to 23:59 - 12.9 mg/m3\n10/9/2025 08:30 to 08:59 - 10.7 mg/m3\n16/11/2025 23:00 to 23:29 - 14.7 mg/m3",null,null,null,null,null,null,null,null,null,"Annual",{"$f":"AVERAGE(L37:L48)","v":{"$error":"#DIV/0!"}},{"$f":"MAX(M37:M48)","v":0},{"$f":"AVERAGE(N37:N48)","v":{"$error":"#DIV/0!"}},{"$f":"MAX(O37:O48)","v":0}]
[]
[null,null,null,null,null,null,null,null,null,{"$f":"+A5","v":2025},"mg/Nm3","Monthly mean of half-hourly averages","Highest half- hourly average","Monthly mean of  daily averages","Highest daily average"]
[null,null,null,null,null,null,null,null,null,"A4","Jan"]
[null,null,null,null,null,null,null,null,null,null,"Feb"]
[null,null,null,null,null,null,null,null,null,null,"Mar"]
[null,null,null,null,null,null,null,null,null,null,"Apr"]
[null,null,null,null,null,null,null,null,null,null,"May"]
[null,null,null,null,null,null,null,null,null,null,"Jun"]
[null,null,null,null,null,null,null,null,null,null,"Jul"]
[null,null,null,null,null,null,null,null,null,null,"Aug"]
[null,null,null,null,null,null,null,null,null,null,"Sep"]
[null,null,null,null,null,null,null,null,null,null,"Oct"]
[null,null,null,null,null,null,null,null,null,null,"Nov"]
[null,null,null,null,null,null,null,null,null,null,"Dec"]
[null,null,null,null,null,null,null,null,null,null,"Annual",{"$f":"AVERAGE(L52:L63)","v":{"$error":"#DIV/0!"}},{"$f":"MAX(M52:M63)","v":0},{"$f":"AVERAGE(N52:N63)","v":{"$error":"#DIV/0!"}},{"$f":"MAX(O52:O63)","v":0}]
[]
[null,null,null,null,null,null,null,null,null,{"$f":"+A5","v":2025},"mg/Nm3","Monthly mean of half-hourly averages","Highest half- hourly average","Monthly mean of  daily averages","Highest daily average"]
[null,null,null,null,null,null,null,null,null,"A5","Jan"]
[null,null,null,null,null,null,null,null,null,null,"Feb"]
[null,null,null,null,null,null,null,null,null,null,"Mar"]
[null,null,null,null,null,null,null,null,null,null,"Apr"]
[null,null,null,null,null,null,null,null,null,null,"May"]
[null,null,null,null,null,null,null,null,null,null,"Jun"]
[null,null,null,null,null,null,null,null,null,null,"Jul"]
[null,null,null,null,null,null,null,null,null,null,"Aug"]
[null,null,null,null,null,null,null,null,null,null,"Sep"]
[null,null,null,null,null,null,null,null,null,null,"Oct"]
[null,null,null,null,null,null,null,null,null,null,"Nov"]
[null,null,null,null,null,null,null,null,null,null,"Dec"]
[null,null,null,null,null,null,null,null,null,null,"Annual",{"$f":"AVERAGE(L67:L78)","v":{"$error":"#DIV/0!"}},{"$f":"MAX(M67:M78)","v":0},{"$f":"AVERAGE(N67:N78)","v":{"$error":"#DIV/0!"}},{"$f":"MAX(O67:O78)","v":0}]

{"sheet":"Particulates","index":18,"n_rows":79,"n_cols":17,"rows_kept":79,"cut":false,"hidden":false,"merged":[[4,16,8,18],[10,16,12,18],[13,16,16,18],[66,9,78,9],[4,1,4,3],[4,4,4,6],[4,9,4,14],[6,9,18,9],[21,9,33,9],[36,9,48,9],[47,0,47,6],[48,0,51,6],[51,9,63,9],[18,4,18,6]]}
[{"$f":"+'Cover Page'!$B$29","v":"Annual Performance Report 2025"},null,null,null,{"$f":"+'Cover Page'!$B$33","v":"Peterborough Energy Recovery Facility"}]
[]
["Monitoring of Particulate matter emissions",null,null,"Whole Installation",null,null,"See  Notes in Cell Q3",null,null,{"$f":"+A3","v":"Monitoring of Particulate matter emissions"},null,null,null,"Per Combustion Line",null,null,"Notes:"]
[]
[{"$f":"+'Cover Page'!C39","v":2025},"1/2 Hourly Reference Periods",null,null,"Daily Reference Periods",null,null,null,null,null,null,null,null,null,null,null,"User to add logic to complete Whole installation, Table A5:G18. From the data in Per Combustion Line, Table J6:O79, subject to No. of lines installed"]
["mg/Nm3","1/2 hourly PM ELV","Monthly mean of half-hourly averages","Highest half- hourly average","Daily PM ELV","Monthly mean of  daily averages","Highest daily average",null,null,{"$f":"+A5","v":2025},"mg/Nm3","Monthly mean of half-hourly averages","Highest half- hourly average","Monthly mean of  daily averages","Highest daily average"]
["Jan",30,{"$f":"L7","v":0.2},{"$f":"M7","v":2.2999999999999998},5,{"$f":"N7","v":0.2},{"$f":"O7","v":0.7},null,null,"A1","Jan",0.2,2.2999999999999998,0.2,0.7]
["Feb",30,{"$f":"L8","v":2.8},{"$f":"M8","v":20},5,{"$f":"N8","v":2.7},{"$f":"O8","v":4.4000000000000004},null,null,null,"Feb",2.8,20,2.7,4.4000000000000004]
["Mar",30,1.6,9.4,5,1.4,3.7,null,null,null,"Mar",1.6,9.4,1.4,3.7]
["Apr",30,0,0.3,5,0,0,null,null,null,"Apr",0,0.3,0,0,null,"Whole Installation table A5:G18:"]
["May",30,0,0.1,5,0,0,null,null,null,"May",0,0.1,0,0,null,"Mean: for 1/2 hourly and daily periods calculate mean of values across all operational combustion lines for the month"]
["Jun",30,0,0.8,5,0,0,null,null,null,"Jun",0,0.8,0,0]
["Jul",30,0,0.3,5,0,0,null,null,null,"Jul",0,0.3,0,0]
["Aug",30,0,0.2,5,0,0,null,null,null,"Aug",0,0.2,0,0,null,"Maximum: for 1/2 hourly and daily periods use the highest value across all operational combustion lines for the month"]
["Sep",30,0.1,6.5,5,0.1,0.4,null,null,null,"Sep",0.1,6.5,0.1,0.4]
["Oct",30,0.3,6.5,5,0.3,0.4,null,null,null,"Oct",0.3,6.5,0.3,0.4]
["Nov",30,0,0.7,5,0,0.1,null,null,null,"Nov",0,0.7,0,0.1]
["Dec",30,0.1,6.7,5,0.1,0.4,null,null,null,"Dec",0.1,6.7,0.1,0.4]
[null,null,null,null,null,null,null,null,null,null,"Annual",{"$f":"AVERAGE(L7:L18)","v":0.42499999999999988},{"$f":"MAX(M7:M18)","v":20},{"$f":"AVERAGE(N7:N18)","v":0.39999999999999997},{"$f":"MAX(O7:O18)","v":4.4000000000000004}]
[]
[null,null,null,null,null,null,null,null,null,{"$f":"+A5","v":2025},"mg/Nm3","Monthly mean of half-hourly averages","Highest half- hourly average","Monthly mean of  daily averages","Highest daily average"]
[null,null,null,null,null,null,null,null,null,"A2","Jan"]
[null,null,null,null,null,null,null,null,null,null,"Feb"]
[null,null,null,null,null,null,null,null,null,null,"Mar"]
[null,null,null,null,null,null,null,null,null,null,"Apr"]
[null,null,null,null,null,null,null,null,null,null,"May"]
[null,null,null,null,null,null,null,null,null,null,"Jun"]
[null,null,null,null,null,null,null,null,null,null,"Jul"]
[null,null,null,null,null,null,null,null,null,null,"Aug"]
[null,null,null,null,null,null,null,null,null,null,"Sep"]
[null,null,null,null,null,null,null,null,null,null,"Oct"]
[null,null,null,null,null,null,null,null,null,null,"Nov"]
[null,null,null,null,null,null,null,null,null,null,"Dec"]
[null,null,null,null,null,null,null,null,null,null,"Annual",{"$f":"AVERAGE(L22:L33)","v":{"$error":"#DIV/0!"}},{"$f":"MAX(M22:M33)","v":0},{"$f":"AVERAGE(N22:N33)","v":{"$error":"#DIV/0!"}},{"$f":"MAX(O22:O33)","v":0}]
[]
[null,null,null,null,null,null,null,null,null,{"$f":"+A5","v":2025},"mg/Nm3","Monthly mean of half-hourly averages","Highest half- hourly average","Monthly mean of  daily averages","Highest daily average"]
[null,null,null,null,null,null,null,null,null,"A3","Jan"]
[null,null,null,null,null,null,null,null,null,null,"Feb"]
[null,null,null,null,null,null,null,null,null,null,"Mar"]
[null,null,null,null,null,null,null,null,null,null,"Apr"]
[null,null,null,null,null,null,null,null,null,null,"May"]
[null,null,null,null,null,null,null,null,null,null,"Jun"]
[null,null,null,null,null,null,null,null,null,null,"Jul"]
[null,null,null,null,null,null,null,null,null,null,"Aug"]
[null,null,null,null,null,null,null,null,null,null,"Sep"]
[null,null,null,null,null,null,null,null,null,null,"Oct"]
[null,null,null,null,null,null,null,null,null,null,"Nov"]
["Comments :",null,null,null,null,null,null,null,null,null,"Dec"]
[null,null,null,null,null,null,null,null,null,null,"Annual",{"$f":"AVERAGE(L37:L48)","v":{"$error":"#DIV/0!"}},{"$f":"MAX(M37:M48)","v":0},{"$f":"AVERAGE(N37:N48)","v":{"$error":"#DIV/0!"}},{"$f":"MAX(O37:O48)","v":0}]
[]
[null,null,null,null,null,null,null,null,null,{"$f":"+A5","v":2025},"mg/Nm3","Monthly mean of half-hourly averages","Highest half- hourly average","Monthly mean of  daily averages","Highest daily average"]
[null,null,null,null,null,null,null,null,null,"A4","Jan"]
[null,null,null,null,null,null,null,null,null,null,"Feb"]
[null,null,null,null,null,null,null,null,null,null,"Mar"]
[null,null,null,null,null,null,null,null,null,null,"Apr"]
[null,null,null,null,null,null,null,null,null,null,"May"]
[null,null,null,null,null,null,null,null,null,null,"Jun"]
[null,null,null,null,null,null,null,null,null,null,"Jul"]
[null,null,null,null,null,null,null,null,null,null,"Aug"]
[null,null,null,null,null,null,null,null,null,null,"Sep"]
[null,null,null,null,null,null,null,null,null,null,"Oct"]
[null,null,null,null,null,null,null,null,null,null,"Nov"]
[null,null,null,null,null,null,null,null,null,null,"Dec"]
[null,null,null,null,null,null,null,null,null,null,"Annual",{"$f":"AVERAGE(L52:L63)","v":{"$error":"#DIV/0!"}},{"$f":"MAX(M52:M63)","v":0},{"$f":"AVERAGE(N52:N63)","v":{"$error":"#DIV/0!"}},{"$f":"MAX(O52:O63)","v":0}]
[]
[null,null,null,null,null,null,null,null,null,{"$f":"+A5","v":2025},"mg/Nm3","Monthly mean of half-hourly averages","Highest half- hourly average","Monthly mean of  daily averages","Highest daily average"]
[null,null,null,null,null,null,null,null,null,"A5","Jan"]
[null,null,null,null,null,null,null,null,null,null,"Feb"]
[null,null,null,null,null,null,null,null,null,null,"Mar"]
[null,null,null,null,null,null,null,null,null,null,"Apr"]
[null,null,null,null,null,null,null,null,null,null,"May"]
[null,null,null,null,null,null,null,null,null,null,"Jun"]
[null,null,null,null,null,null,null,null,null,null,"Jul"]
[null,null,null,null,null,null,null,null,null,null,"Aug"]
[null,null,null,null,null,null,null,null,null,null,"Sep"]
[null,null,null,null,null,null,null,null,null,null,"Oct"]
[null,null,null,null,null,null,null,null,null,null,"Nov"]
[null,null,null,null,null,null,null,null,null,null,"Dec"]
[null,null,null,null,null,null,null,null,null,null,"Annual",{"$f":"AVERAGE(L67:L78)","v":{"$error":"#DIV/0!"}},{"$f":"MAX(M67:M78)","v":0},{"$f":"AVERAGE(N67:N78)","v":{"$error":"#DIV/0!"}},{"$f":"MAX(O67:O78)","v":0}]

{"sheet":"CO 95% 10 min","index":19,"n_rows":80,"n_cols":19,"rows_kept":80,"cut":false,"hidden":false,"merged":[[4,18,8,20],[10,18,12,20],[13,18,16,20],[67,10,79,10],[5,1,5,4],[5,5,5,7],[5,10,5,16],[7,10,19,10],[22,10,34,10],[37,10,49,10],[48,0,48,7],[49,0,52,7],[52,10,64,10]]}
[{"$f":"+'Cover Page'!$B$29","v":"Annual Performance Report 2025"},null,null,null,{"$f":"+'Cover Page'!$B$33","v":"Peterborough Energy Recovery Facility"}]
[]
["Monitoring of Carbon Monoxide (10-minute avg)",null,null,null,"Whole Installation",null,null,"See  Notes in Cell S3",null,{"$f":"+A3","v":"Monitoring of Carbon Monoxide (10-minute avg)"},null,null,null,null,"Per Combustion Line",null,"Notes:",null,"Notes:"]
[]
[null,null,null,null,null,null,null,null,null,null,null,null,null,null,null,null,null,null,"User to add logic to complete Whole installation, Table A5:H18. From the data in Per Combustion Line, Table K6:Q79, subject to No. of lines installed"]
[{"$f":"+'Cover Page'!C39","v":2025},"10-minute Reference Periods",null,null,null,"Daily Reference Periods"]
["mg/Nm3","95%ile 10-min avg CO ELV","Highest daily 95%ile 10-min average","Monthly mean of 10-min averages","Highest 10-min average","Daily CO ELV","Monthly mean of  daily averages","Highest daily average",null,null,{"$f":"+A6","v":2025},"mg/Nm3","Highest daily 95%ile 10-min average","Monthly mean of 10-min averages","Highest 10-min average","Monthly mean of  daily averages","Highest daily average"]
["Jan",150,{"$f":"M8","v":10.8},{"$f":"N8","v":1.8},{"$f":"O8","v":226.6},50,{"$f":"P8","v":1.8},{"$f":"Q8","v":5},null,null,"A1","Jan",10.8,1.8,226.6,1.8,5]
["Feb",{"$f":"+B8","v":150},{"$f":"M9","v":26.2},{"$f":"N9","v":1.9},{"$f":"O9","v":360.3},51,{"$f":"P9","v":1.9},{"$f":"Q9","v":7.5},null,null,null,"Feb",26.2,1.9,360.3,1.9,7.5]
["Mar",{"$f":"+B9","v":150},8.9,2.7,308.2,52,2.7,6.3,null,null,null,"Mar",8.9,2.7,308.2,2.7,6.3,null,"Whole Installation table A5:H18:"]
["Apr",150,32.6,10.199999999999999,993.5,53,3.6,4.5,null,null,null,"Apr",32.6,10.199999999999999,993.5,3.6,4.5,null,"Mean: for 10-min and daily periods use average of all operational combustion lines."]
["May",150,14.1,3.8,339.8,54,3.8,6.3,null,null,null,"May",14.1,3.8,339.8,3.8,6.3]
["Jun",150,13.4,4.0999999999999996,159.30000000000001,55,4.0999999999999996,5.4,null,null,null,"Jun",13.4,4.0999999999999996,159.30000000000001,4.0999999999999996,5.4]
["Jul",150,11.9,4,322.8,56,4,5.3,null,null,null,"Jul",11.9,4,322.8,4,5.3,null,"Maximum: for 10-min and daily periods use the highest of all operational combustion lines in any month."]
["Aug",150,9.4,5.8,260.5,57,5.8,7,null,null,null,"Aug",9.4,5.8,260.5,5.8,7]
["Sep",150,17.600000000000001,6.9,701,58,6.9,11.7,null,null,null,"Sep",17.600000000000001,6.9,701,6.9,11.7]
["Oct",150,17.8,7.4,223.3,59,7.4,10.3,null,null,null,"Oct",17.8,7.4,223.3,7.4,10.3]
["Nov",150,14.1,5.8,628.1,60,5.8,11.5,null,null,null,"Nov",14.1,5.8,628.1,5.8,11.5]
["Dec",150,10.1,5.8,645.70000000000005,61,5.7,9.9,null,null,null,"Dec",10.1,5.8,645.70000000000005,5.7,9.9]
[null,null,null,null,null,null,null,null,null,null,null,"Annual",{"$f":"AVERAGE(M8:M19)","v":15.575000000000001},{"$f":"AVERAGE(N8:N19)","v":5.0166666666666657},{"$f":"MAX(O8:O19)","v":993.5},{"$f":"AVERAGE(P8:P19)","v":4.458333333333333},{"$f":"MAX(Q8:Q19)","v":11.7}]
[]
[null,null,null,null,null,null,null,null,null,null,{"$f":"+A6","v":2025},"mg/Nm3","Highest daily 95%ile 10-min average","Monthly mean of 10-min averages","Highest 10-min average","Monthly mean of  daily averages","Highest daily average"]
[null,null,null,null,null,null,null,null,null,null,"A2","Jan"]
[null,null,null,null,null,null,null,null,null,null,null,"Feb"]
[null,null,null,null,null,null,null,null,null,null,null,"Mar"]
[null,null,null,null,null,null,null,null,null,null,null,"Apr"]
[null,null,null,null,null,null,null,null,null,null,null,"May"]
[null,null,null,null,null,null,null,null,null,null,null,"Jun"]
[null,null,null,null,null,null,null,null,null,null,null,"Jul"]
[null,null,null,null,null,null,null,null,null,null,null,"Aug"]
[null,null,null,null,null,null,null,null,null,null,null,"Sep"]
[null,null,null,null,null,null,null,null,null,null,null,"Oct"]
[null,null,null,null,null,null,null,null,null,null,null,"Nov"]
[null,null,null,null,null,null,null,null,null,null,null,"Dec"]
[null,null,null,null,null,null,null,null,null,null,null,"Annual",{"$f":"AVERAGE(M23:M34)","v":{"$error":"#DIV/0!"}},null,{"$f":"MAX(O23:O34)","v":0},{"$f":"AVERAGE(P23:P34)","v":{"$error":"#DIV/0!"}},{"$f":"MAX(Q23:Q34)","v":0}]
[]
[null,null,null,null,null,null,null,null,null,null,{"$f":"+A6","v":2025},"mg/Nm3","Highest daily 95%ile 10-min average","Monthly mean of 10-min averages","Highest 10-min average","Monthly mean of  daily averages","Highest daily average"]
[null,null,null,null,null,null,null,null,null,null,"A3","Jan"]
[null,null,null,null,null,null,null,null,null,null,null,"Feb"]
[null,null,null,null,null,null,null,null,null,null,null,"Mar"]
[null,null,null,null,null,null,null,null,null,null,null,"Apr"]
[null,null,null,null,null,null,null,null,null,null,null,"May"]
[null,null,null,null,null,null,null,null,null,null,null,"Jun"]
[null,null,null,null,null,null,null,null,null,null,null,"Jul"]
[null,null,null,null,null,null,null,null,null,null,null,"Aug"]
[null,null,null,null,null,null,null,null,null,null,null,"Sep"]
[null,null,null,null,null,null,null,null,null,null,null,"Oct"]
[null,null,null,null,null,null,null,null,null,null,null,"Nov"]
["Comments :",null,null,null,null,null,null,null,null,null,null,"Dec"]
["Environment Agency explanatory note: The 10-minute average ELV is based on the “95th percentile”. In this case this means that 95% of the 10 minute averages in the relevant 24-hour period (i.e. 137) must be below 150 mg/Nm3, and 5% (i.e. 7) are allowed to be any value above 150 mg/Nm3. Whilst we expect operators to minimise CO emissions at all times, it is perfectly acceptable for the value of the maximum 10-minute average to be above 150 mg/Nm3, provided the 95th percentile ELV has been met for that period. ",null,null,null,null,null,null,null,null,null,null,"Annual",{"$f":"AVERAGE(M38:M49)","v":{"$error":"#DIV/0!"}},null,{"$f":"MAX(O38:O49)","v":0},{"$f":"AVERAGE(P38:P49)","v":{"$error":"#DIV/0!"}},{"$f":"MAX(Q38:Q49)","v":0}]
[]
[null,null,null,null,null,null,null,null,null,null,{"$f":"+A6","v":2025},"mg/Nm3","Highest daily 95%ile 10-min average","Monthly mean of 10-min averages","Highest 10-min average","Monthly mean of  daily averages","Highest daily average"]
[null,null,null,null,null,null,null,null,null,null,"A4","Jan"]
[null,null,null,null,null,null,null,null,null,null,null,"Feb"]
[null,null,null,null,null,null,null,null,null,null,null,"Mar"]
[null,null,null,null,null,null,null,null,null,null,null,"Apr"]
[null,null,null,null,null,null,null,null,null,null,null,"May"]
[null,null,null,null,null,null,null,null,null,null,null,"Jun"]
[null,null,null,null,null,null,null,null,null,null,null,"Jul"]
[null,null,null,null,null,null,null,null,null,null,null,"Aug"]
[null,null,null,null,null,null,null,null,null,null,null,"Sep"]
[null,null,null,null,null,null,null,null,null,null,null,"Oct"]
[null,null,null,null,null,null,null,null,null,null,null,"Nov"]
[null,null,null,null,null,null,null,null,null,null,null,"Dec"]
[null,null,null,null,null,null,null,null,null,null,null,"Annual",{"$f":"AVERAGE(M53:M64)","v":{"$error":"#DIV/0!"}},null,{"$f":"MAX(O53:O64)","v":0},{"$f":"AVERAGE(P53:P64)","v":{"$error":"#DIV/0!"}},{"$f":"MAX(Q53:Q64)","v":0}]
[]
[null,null,null,null,null,null,null,null,null,null,{"$f":"+A6","v":2025},"mg/Nm3","95%ile 10-min avg maximum","Monthly CO 10-min avg mean","10-min avg maximum","Monthly daily mean","Monthly daily maximum"]
[null,null,null,null,null,null,null,null,null,null,"A5","Jan"]
[null,null,null,null,null,null,null,null,null,null,null,"Feb"]
[null,null,null,null,null,null,null,null,null,null,null,"Mar"]
[null,null,null,null,null,null,null,null,null,null,null,"Apr"]
[null,null,null,null,null,null,null,null,null,null,null,"May"]
[null,null,null,null,null,null,null,null,null,null,null,"Jun"]
[null,null,null,null,null,null,null,null,null,null,null,"Jul"]
[null,null,null,null,null,null,null,null,null,null,null,"Aug"]
[null,null,null,null,null,null,null,null,null,null,null,"Sep"]
[null,null,null,null,null,null,null,null,null,null,null,"Oct"]
[null,null,null,null,null,null,null,null,null,null,null,"Nov"]
[null,null,null,null,null,null,null,null,null,null,null,"Dec"]
[null,null,null,null,null,null,null,null,null,null,null,"Annual",{"$f":"AVERAGE(M68:M79)","v":{"$error":"#DIV/0!"}},null,{"$f":"MAX(O68:O79)","v":0},{"$f":"AVERAGE(P68:P79)","v":{"$error":"#DIV/0!"}},{"$f":"MAX(Q68:Q79)","v":0}]

{"sheet":"NH3","index":20,"n_rows":79,"n_cols":17,"rows_kept":79,"cut":false,"hidden":false,"merged":[[3,16,7,18],[9,16,11,18],[12,16,15,18],[66,9,78,9],[4,1,4,3],[4,4,4,6],[4,9,4,14],[6,9,18,9],[21,9,33,9],[36,9,48,9],[47,0,47,6],[48,0,51,6],[51,9,63,9],[18,4,18,6]]}
[{"$f":"+'Cover Page'!$B$29","v":"Annual Performance Report 2025"},null,null,null,{"$f":"+'Cover Page'!$B$33","v":"Peterborough Energy Recovery Facility"}]
[]
["Monitoring of Ammnonia emissions ",null,null,"Whole Installation",null,null,"See  Notes in Cell Q3",null,null,{"$f":"+A3","v":"Monitoring of Ammnonia emissions "},null,null,null,"Per Combustion Line",null,null,"Notes:"]
[null,null,null,null,null,null,null,null,null,null,null,null,null,null,null,null,"User to add logic to complete Whole installation, Table A5:G18. From the data in Per Combustion Line, Table J6:O79, subject to No. of lines installed"]
[{"$f":"+'Cover Page'!C39","v":2025},"1/2 Hourly Reference Periods",null,null,"Daily Reference Periods"]
["mg/Nm3","1/2 hourly NH3 ELV","Monthly mean of half-hourly averages","Highest half- hourly average","Daily NH3 ELV","Monthly mean of  daily averages","Highest daily average",null,null,{"$f":"+A5","v":2025},"mg/Nm3","Monthly mean of half-hourly averages","Highest half- hourly average","Monthly mean of  daily averages","Highest daily average"]
["Jan","None",{"$f":"L7","v":0},{"$f":"M7","v":5.5},15,{"$f":"N7","v":0},{"$f":"O7","v":0.4},null,null,"A1","Jan",0,5.5,0,0.4]
["Feb",{"$f":"+B7","v":"None"},{"$f":"L8","v":0.1},{"$f":"M8","v":5.6},15,{"$f":"N8","v":0},{"$f":"O8","v":0.5},null,null,null,"Feb",0.1,5.6,0,0.5]
["Mar",{"$f":"+B8","v":"None"},0.2,10.8,15,0.1,1.2,null,null,null,"Mar",0.2,10.8,0.1,1.2,null,"Whole Installation table A5:G18:"]
["Apr","None",5.5,20.5,15,4.7,6.7,null,null,null,"Apr",5.5,20.5,4.7,6.7,null,"Mean: for 1/2 hourly and daily periods calculate mean of values across all operational combustion lines for the month"]
["May","None",1.4,11.6,15,1.4,5.2,null,null,null,"May",1.4,11.6,1.4,5.2]
["Jun","None",1.1000000000000001,8.3000000000000007,15,1,1.5,null,null,null,"Jun",1.1000000000000001,8.3000000000000007,1,1.5]
["Jul","None",1,7.6,15,0.9,1.9,null,null,null,"Jul",1,7.6,0.9,1.9,null,"Maximum: for 1/2 hourly and daily periods use the highest value across all operational combustion lines for the month"]
["Aug","None",0.9,10.6,15,0.8,1.5,null,null,null,"Aug",0.9,10.6,0.8,1.5]
["Sep","None",0.9,19.3,15,0.8,2.7,null,null,null,"Sep",0.9,19.3,0.8,2.7]
["Oct","None",1,10.199999999999999,15,0.9,2.8,null,null,null,"Oct",1,10.199999999999999,0.9,2.8]
["Nov","None",1,14,15,1,2.5,null,null,null,"Nov",1,14,1,2.5]
["Dec","None",0.5,13.8,15,0.4,1.5,null,null,null,"Dec",0.5,13.8,0.4,1.5]
[null,null,null,null,null,null,null,null,null,null,"Annual",{"$f":"AVERAGE(L7:L18)","v":1.1333333333333333},{"$f":"MAX(M7:M18)","v":20.5},{"$f":"AVERAGE(N7:N18)","v":1.0000000000000002},{"$f":"MAX(O7:O18)","v":6.7}]
[]
[null,null,null,null,null,null,null,null,null,{"$f":"+A5","v":2025},"mg/Nm3","Monthly mean of half-hourly averages","Highest half- hourly average","Monthly mean of  daily averages","Highest daily average"]
[null,null,null,null,null,null,null,null,null,"A2","Jan"]
[null,null,null,null,null,null,null,null,null,null,"Feb"]
[null,null,null,null,null,null,null,null,null,null,"Mar"]
[null,null,null,null,null,null,null,null,null,null,"Apr"]
[null,null,null,null,null,null,null,null,null,null,"May"]
[null,null,null,null,null,null,null,null,null,null,"Jun"]
[null,null,null,null,null,null,null,null,null,null,"Jul"]
[null,null,null,null,null,null,null,null,null,null,"Aug"]
[null,null,null,null,null,null,null,null,null,null,"Sep"]
[null,null,null,null,null,null,null,null,null,null,"Oct"]
[null,null,null,null,null,null,null,null,null,null,"Nov"]
[null,null,null,null,null,null,null,null,null,null,"Dec"]
[null,null,null,null,null,null,null,null,null,null,"Annual",{"$f":"AVERAGE(L22:L33)","v":{"$error":"#DIV/0!"}},{"$f":"MAX(M22:M33)","v":0},{"$f":"AVERAGE(N22:N33)","v":{"$error":"#DIV/0!"}},{"$f":"MAX(O22:O33)","v":0}]
[]
[null,null,null,null,null,null,null,null,null,{"$f":"+A5","v":2025},"mg/Nm3","Monthly mean of half-hourly averages","Highest half- hourly average","Monthly mean of  daily averages","Highest daily average"]
[null,null,null,null,null,null,null,null,null,"A3","Jan"]
[null,null,null,null,null,null,null,null,null,null,"Feb"]
[null,null,null,null,null,null,null,null,null,null,"Mar"]
[null,null,null,null,null,null,null,null,null,null,"Apr"]
[null,null,null,null,null,null,null,null,null,null,"May"]
[null,null,null,null,null,null,null,null,null,null,"Jun"]
[null,null,null,null,null,null,null,null,null,null,"Jul"]
[null,null,null,null,null,null,null,null,null,null,"Aug"]
[null,null,null,null,null,null,null,null,null,null,"Sep"]
[null,null,null,null,null,null,null,null,null,null,"Oct"]
[null,null,null,null,null,null,null,null,null,null,"Nov"]
["Comments :",null,null,null,null,null,null,null,null,null,"Dec"]
["An indicated ELV value of zero in the table above means that no ammonia limit is/was set in the permit.  ",null,null,null,null,null,null,null,null,null,"Annual",{"$f":"AVERAGE(L37:L48)","v":{"$error":"#DIV/0!"}},{"$f":"MAX(M37:M48)","v":0},{"$f":"AVERAGE(N37:N48)","v":{"$error":"#DIV/0!"}},{"$f":"MAX(O37:O48)","v":0}]
[]
[null,null,null,null,null,null,null,null,null,{"$f":"+A5","v":2025},"mg/Nm3","Monthly mean of half-hourly averages","Highest half- hourly average","Monthly mean of  daily averages","Highest daily average"]
[null,null,null,null,null,null,null,null,null,"A4","Jan"]
[null,null,null,null,null,null,null,null,null,null,"Feb"]
[null,null,null,null,null,null,null,null,null,null,"Mar"]
[null,null,null,null,null,null,null,null,null,null,"Apr"]
[null,null,null,null,null,null,null,null,null,null,"May"]
[null,null,null,null,null,null,null,null,null,null,"Jun"]
[null,null,null,null,null,null,null,null,null,null,"Jul"]
[null,null,null,null,null,null,null,null,null,null,"Aug"]
[null,null,null,null,null,null,null,null,null,null,"Sep"]
[null,null,null,null,null,null,null,null,null,null,"Oct"]
[null,null,null,null,null,null,null,null,null,null,"Nov"]
[null,null,null,null,null,null,null,null,null,null,"Dec"]
[null,null,null,null,null,null,null,null,null,null,"Annual",{"$f":"AVERAGE(L52:L63)","v":{"$error":"#DIV/0!"}},{"$f":"MAX(M52:M63)","v":0},{"$f":"AVERAGE(N52:N63)","v":{"$error":"#DIV/0!"}},{"$f":"MAX(O52:O63)","v":0}]
[]
[null,null,null,null,null,null,null,null,null,{"$f":"+A5","v":2025},"mg/Nm3","Monthly mean of half-hourly averages","Highest half- hourly average","Monthly mean of  daily averages","Highest daily average"]
[null,null,null,null,null,null,null,null,null,"A5","Jan"]
[null,null,null,null,null,null,null,null,null,null,"Feb"]
[null,null,null,null,null,null,null,null,null,null,"Mar"]
[null,null,null,null,null,null,null,null,null,null,"Apr"]
[null,null,null,null,null,null,null,null,null,null,"May"]
[null,null,null,null,null,null,null,null,null,null,"Jun"]
[null,null,null,null,null,null,null,null,null,null,"Jul"]
[null,null,null,null,null,null,null,null,null,null,"Aug"]
[null,null,null,null,null,null,null,null,null,null,"Sep"]
[null,null,null,null,null,null,null,null,null,null,"Oct"]
[null,null,null,null,null,null,null,null,null,null,"Nov"]
[null,null,null,null,null,null,null,null,null,null,"Dec"]
[null,null,null,null,null,null,null,null,null,null,"Annual",{"$f":"AVERAGE(L67:L78)","v":{"$error":"#DIV/0!"}},{"$f":"MAX(M67:M78)","v":0},{"$f":"AVERAGE(N67:N78)","v":{"$error":"#DIV/0!"}},{"$f":"MAX(O67:O78)","v":0}]

{"sheet":"Template changes log","index":21,"n_rows":23,"n_cols":3,"rows_kept":23,"cut":false,"hidden":false,"merged":[]}
["Log of changes to template (Environment Agency use only)"]
[]
["Date","Description of change","New version number and date"]
["2024-01-16","Air (periodic) tab: corrected default O2 reference from 6 to 11% ","Version 23.5a (for incinerators) - 16/01/2024"]
["2024-09-23","Air (periodic) tab: corrected symbol for Thallium to Tl"]
["2024-09-23","Air (periodic) tab: removed last year's references to different emission limit values applying from 03/12/23 and updated all relevant ELVs"]
["2024-09-23","Tabs for continuously monitored pollutants (HCl, SO2 etc.): changed terminology in table headings to improve clarity"]
["2024-09-23","Tabs for continuously monitored pollutants (HCl, SO2 etc.): removed last year's references to different emission limit values applying from 03/12/23 and updated all relevant ELVs"]
["2024-09-23","Perf 1 tab: updated formula for water usage to report m3 rather than litres and corrected error with formula copying operator name"]
["2024-09-23","Operational Summary tab: table added on start-ups and shut-downs"]
["2024-09-23","Operational Summary tab: table added on dioxins and mercury protocols"]
["2024-09-23","Operational Summary tab: table added on AST, QAL 2 and calibration functions"]
["2024-09-23","CO2 N2O tab: various changes made to notes to reflect the fact that most plants should now have calibrated CEMS and flow meters + some have C14 samplers and more up to date industry data","Version 24a (for incinerators) - 23/09/24"]
["2024-11-08","CO2 N2O tab: Changed the N2O CO2 equivalence factor from 298 to 265 in line with recently updated government greenhouse gas figures: https://www.gov.uk/government/publications/greenhouse-gas-reporting-conversion-factors-2024"]
["2024-11-08","CO2 N2O tab: Added an additional requirement for municipal EfW plants to state the yearly average biogenic percentage of the waste by mass, and reference to a document which sets out a methodology for calculating NCV of waste from the results of C14 sampling."]
["2024-11-08","Permit Compliance tab: Two additional columns added + explanatory notes to the table entitled \"Summary of non-compliances under the permit\" to allow CCS scores to be stated where relevant. "]
["2024-11-08","Residue Quality tab: Note added explaining application of TOC and LOI limits and asking operators to report both metrics where measured. ","Version 24.1a (for incinerators) - 08/11/24"]
["2024-11-27","Operational Summary tab: table added on start-ups and shut-downs","Version 24.2a (for incinerators) - 27/11/24"]
["2025-11-27","Cover Page: Print as PDF and Print Report and pdf buttons deleted and blank columns removed; contents page deleted","Version 25.1a (for incinerators) - 27/11/25"]
["2025-11-27","Residue Quality tab renamed to \"Residues\", and Summary of residue handling table moved from Operational Summary tab to Residues tab."]
["2025-11-27","Various changes made to the Operational Data tab including\n•\tReformatting of the rows under the Operational data heading (Rows 3-8) to make it clearer what information is required. \n•\tAmendment of the rows under the Energy Usage / Export heading (Rows 26-32) to calculate an “indicative parasitic load” (now excluding energy imported)\n•\tAmendment of the unit for gas usage from cubic feet to cubic metres (Row 50) \n•\tSome amendments to the first 2 notes and other minor edits\n•\tDeleted \"Overall Availability, mean avg. of all lines, hrs\" row"]
["2025-11-27","Operational Summary tab: Note added requiring all emergency shut-downs be listed, irrespective of whether or not they were reportable. "]
["2025-11-27","CO2 N2O tab: Note added to ask operators to ensure that relevant data reported here matches that which will be submitted under the Pollution Inventory"]